{"text_format":"1","workbook":"xlsx","n_sheets":11,"sheets":["Registro de cambios","configuracion","DIGITADOR","DATOS","referentes","Otras referencias","AGD_MUESTREOS","AGD_PARAMETRO","AGD_MUESTRAS","AGD_MUESTRAS_VARIABLES","AGD_AUTORIAS"],"not_rendered":{"charts":0,"images":0,"macros":1,"external_links":3,"defined_names":21,"comments":2,"pivot_tables":0},"unopened":[],"bounds":{"document_bytes":16777216,"sheet_cells":100000,"rows_first":2000,"rows_last":500,"rows_between":2000,"halvings":0,"cell_chars":16384,"cell_head_chars":4096},"cells_cut":0,"cells_raw":0,"read":"whole","date_system":"1900"}

{"sheet":"Registro de cambios","index":0,"n_rows":6,"n_cols":7,"rows_kept":6,"cut":false,"hidden":true,"merged":[[2,3,2,6]]}
[]
[]
[null,null,null,"REGISTRO DE CAMBIOS"]
[null,null,null,"VERSIÓN No.","CAMBIO REALIZADO","AUTOR","VIGENTE DESDE\n(DD/MM/AAAA)"]
[null,null,null,"20241005i","Actualización del código de la macro.\n\nSe eliminó la URL de la antigua API de portete:\n       http://portete.invemar.org.co:7003/ArgosWebServices-RESTWebService-context-root/rest/1.0\n\nFue reemplazada por la URL de la API de ARGOS:\n       https://argos.invemar.org.co/api/\n\nLa API contiene End Points que permiten tener mayor control, facilitan la descarga de referentes (listas de usuarios, estaciones, especies, etc.) que corresponden a criterios específicos como el proyecto usado en la plantilla para evitar descargar data innecesaria.\n\nDel mismo modo, también permite la carga de información a la BDD del INVEMAR.\n\nLa macro toma los Endpoints desde la hoja configuracion de una tabla llamada \"Configuración referentes\", a la que se le puede modificar las rutas de la API o agregar nuevas. cabe resaltar que se puede \"quemar\" directamente en la macro los Endpoints que lo requieran.","Juan Muñoz","2024-05-10"]
[null,null,null,"20230813i","Se creó la plantilla de cero (0), los elementos que componen la plantilla funcionan para la temática de OCEANOGRAFÍA.\n\nSe modificó la hoja de DIGITADOR añadiendo listas de valores como y atributos adicionales como 'Observaciones generales'.\n\nSe crearon todas las columnas que componente la hoja de DATOS, se obtienen valores como la fecha, estación, altura significativa de la ola, periodo y dirección pico, etc .\n\nSe mapeó toda la hoja de CONFIGURACIÓN para tomar los valores de los muestreos y muestras y generar las tablas que sirven para subir la información al sistema.\n","Kevin Moreno","13/8/2023"]

{"sheet":"configuracion","index":1,"n_rows":71,"n_cols":7,"rows_kept":71,"cut":false,"hidden":true,"merged":[[23,0,26,0],[0,0,2,0],[3,0,5,0],[7,0,8,0],[9,0,15,0],[17,0,21,0],[61,0,61,2],[45,5,45,6],[60,0,60,1],[28,0,35,0],[37,0,42,0],[45,0,45,1]]}
["general","urlServicio","https://argos.invemar.org.co/api/"]
[null,"fila de inicio",3]
[null,"fila de fin",303]
["metodologias","Metodologias",{"$f":"DIGITADOR!B4","v":869}]
[null,"Referentes",300]
[null,"Cantidad maxima de referentes ",300]
["estaciones/investigadores","proyectos",3572]
["Lista especies","metodologias",{"$f":"DIGITADOR!B4","v":869}]
[null,"proyectos",3572]
["MUESTREOS","ID_MUESTREO","DATOS,B"]
[null,"ID_ESTACION","DATOS,E"]
[null,"ID_PROYECTO",3572]
[null,"ID_METODOLOGIA",{"$f":"DIGITADOR!B4","v":869}]
[null,"ID_TEMATICAS",{"$f":"IF(C4=\"\",\"\",VLOOKUP(C4,'Otras referencias'!N7:P9,2,FALSE))","v":267}]
[null,"FECHA","DATOS,G"]
[null,"NOTAS","DIGITADOR,B,28"]
[null,"cantidad",303]
["parametro muestreo","ID_MUESTREO","DATOS,B","DATOS,B","DATOS,B","DATOS,B"]
[null,"ID_PARAMETRO",1169,1055,1170,127]
[null,"ID_METODOLOGIA",{"$f":"DIGITADOR!$B$4","v":869},{"$f":"DIGITADOR!$B$4","v":869},{"$f":"DIGITADOR!$B$4","v":869},{"$f":"DIGITADOR!$B$4","v":869}]
[null,"ID_UNIDAD_MEDIDA",100,100,100,100]
[null,"VALOR","DIGITADOR,B,14","DIGITADOR,B,7","DIGITADOR,B,13","DIGITADOR,B,12"]
[null,"cantidad",303,303,303,303]
["muestra","ID_MUESTRA","DATOS,D"]
[null,"ID_MUESTREO","DATOS,C"]
[null,"NOTAS","DATOS,P"]
[null,"ES_REPLICA",1]
[null,"cantidad",303]
["muestra variable","ID_PARAMETRO",1741,558,559,1742]
[null,"ID_METODOLOGIA",{"$f":"DIGITADOR!$B$4","v":869},{"$f":"DIGITADOR!$B$4","v":869},{"$f":"DIGITADOR!$B$4","v":869},{"$f":"DIGITADOR!$B$4","v":869}]
[null,"ID_UNIDAD_MEDIDA",100,11,57,67]
[null,"ID_MUESTRA","DATOS,D","DATOS,D","DATOS,D","DATOS,D"]
[null,"ID_METODO"]
[null,"VALOR","DATOS,H","DATOS,K","DATOS,L","DATOS,M"]
[null,"QUALITY_FLAG"]
[null,"PRECISION"]
[null,"cantidad",303,303,303,303]
["autoria","ID_FUNCIONARIO","DIGITADOR,B,2","DIGITADOR,B,18","DIGITADOR,B,20","DIGITADOR,B,22","DIGITADOR,B,24"]
[null,"ID_TAREA",5,"DIGITADOR,A,18","DIGITADOR,A,20","DIGITADOR,A,22","DIGITADOR,A,24"]
[null,"ORDEN",1,2,3,4,5]
[null,"FECHA","DIGITADOR,B,9","DATOS,G","DATOS,G","DATOS,G","DATOS,G"]
[null,"ID_MUESTREO","DATOS,B","DATOS,B","DATOS,B","DATOS,B","DATOS,B"]
[null,"ENTIDAD","DIGITADOR,B,6","DIGITADOR,B,6","DIGITADOR,B,6","DIGITADOR,B,6","DIGITADOR,B,6"]
[null,"cantidad",303,303,303,303,303]
[]
["REGISTROS GENERADOS",null,"REGISTROS CARGADOS",null,null,"OCEANOGRAFIA - METODOLOGIA 869"]
["MUESTREOS",null,null,null,null,"ID_PARAMETRO","NOMBRE_COLUMNA"]
["parametro muestreo",null,null,null,null,1741,"HORA"]
["muestra",null,null,null,null,558,"ALTURA_SIGNIFICATIVA"]
["muestra variable",null,null,null,null,559,"PERIODO_PICO"]
["autoria",null,null,null,null,1742,"DIRECCION_PICO"]
["registros correctos",null,null,null,null,1169,"URL_METADATO"]
["Fecha de carga",null,null,null,null,1055,"VERSION_PLANTILLA"]
["json error",null,null,null,null,1170,"ARCHIVO_FUENTE"]
["error",null,null,null,null,127,"PROYECTO_FINANCIO"]
[]
[]
["Atributo","Descripción","Código"]
["Tipo Nodo","Estaciones",{"$f":"VLOOKUP($B$59,'[2]Otras referencias'!D23:F33,2,FALSE)","v":40}]
[]
[]
["CONFIGURACION REFERENTES"]
["Ruta de la API","Endpoint","Descripción"]
["URL - AGM Campo",{"$f":"CONCATENATE(\"parametros/agmcampo/\",$C$4,\"\")","v":"parametros/agmcampo/869"},"Listado de referentes AGM_CAMPO"]
["URL - Especies",{"$f":"IF($C$8=\"\",\"\",CONCATENATE(\"especies/filt/\",$C$9,\",\",$C$8,\"/\"))","v":"especies/filt/3572,869/"},"Especies por proyecto\n(No todos los proyectos tienen asociados una lista de especies)"]
["URL - Estaciones",{"$f":"CONCATENATE(\"estaciones/\", $C$59, \"/\",$C$9,\"\")","v":"estaciones/40/3572"},"Estaciones/parcelas por proyecto, cambia dependiendo del Tipo de Nodo, cuyo estado sea VIGENTE."]
["URL - Usuarios",{"$f":"CONCATENATE(\"parametros/usersByProject/\",$C$7,\"\")","v":"parametros/usersByProject/3572"},"Usuarios por proyecto."]
["URL - Entidades","estaciones/get-entidades","Listado de entidades."]
["Atributos de la API","codigo_in","nombre_in"]
["Rango de atributos de la API","B69:C70","nombre_in"]
["URL - Plantillas","plantillas/","Endpoint para la carga de datos al sistema."]

{"sheet":"DIGITADOR","index":2,"n_rows":38,"n_cols":4,"rows_kept":38,"cut":false,"hidden":false,"merged":[[37,1,37,2],[36,1,36,2],[0,0,0,1],[15,3,15,9],[16,3,16,9],[1,3,9,9],[10,3,14,9],[7,0,8,0],[26,0,26,1],[29,0,29,1]]}
["Recolección de Datos Monitoreo Oceanografía KFW"]
["Código Digitador",{"$f":"IF(B3=\"\",\"\",INDEX(referentes!Y:Z,MATCH(B3,referentes!Z:Z,0),1))","v":""},null,"Recomendaciones generales: \n¡Precaución! No inserte Filas o Columnas.\nEn los casos en que falte un valor a ingresar que provenga de la hoja de referencias, informe para que el administrador del sistema haga las adiciones necesarias.\nEsta es una plantilla programada. Las columnas de color oscuro se llenan automaticamente, principalmente a partir de los contenidos de la hoja de referencias. \nNO UTILICE PUNTO Y COMA (;) en ningun campo, por ser el separador de variables (columnas). Las unidades de medida son las especificadas en la cabecera de la hoja.\nPara el correcto funcionamiento de la hoja debe estar activa la opcion de Excel de ejecutar macros (al abrir la hoja acepte la opcion habilitar macros, mensaje de Excel que aparece en la parte superior de la hoja en un recuadro amarillo). La extensión del archivo debe ser .xlsm.. \nAl finalizar, renombre el archivo de modo que su contenido sea claro, ejemplo:\ncorporacion_estacion_anocuatrodigitosmesmuestreo.xlsm. El nombre no debe tener espacios en blanco vocales tildadas o ñ."]
["Nombre del responsable",null,{"$f":"IF(G3=\"\",\"\",CONCATENATE(DIGITADOR!$M$1,G3,E3))","v":""}]
["Código Monitoreo",{"$f":"IF(B5=\"\",\"\",INDEX('Otras referencias'!$K$7:$L$9,MATCH(DIGITADOR!B5,'Otras referencias'!$L$7:$L$9,0),1))","v":869}]
["Monitoreo","Oceanografía"]
["Entidad"]
["Versión de la plantilla",{"$f":"'Registro de cambios'!$D$5","v":"20241005i"}]
["Fecha en la que ingresa los datos en esta hoja","DD/MM/AAAA"]
[null,"3000-12-12"]
[]
["Código del proyecto",{"$f":"IF(B12=\"\",\"\",INDEX('Otras referencias'!$D$7:$E$7,MATCH(DIGITADOR!B12,'Otras referencias'!$E$7:$E$7,0),1))","v":3572},null,"Previamente a iniciar el llenado de la plantilla, debe presionar el botón \"Descargar referentes\" para que los referentes de ésta plantilla sean actualizados. \nLuego de llenar completamente la plantilla verifique que:\na. No haya celdas con valores como \"#N/A\" o \"#¡REF!\".\nb. No se estén aplicando filtros en la hoja de datos.\nEnvíe la plantilla diligenciada al correo kevin.moreno@invemar.org.co"]
["Proyecto que financia","KFW"]
["Nombre del Archivo",{"$f":"MID(CELL(\"FILENAME\",N63),FIND(\"[\",CELL(\"FILENAME\",N63))+1,   FIND(\"]\",CELL(\"FILENAME\",N63))-FIND(\"[\",CELL(\"FILENAME\",N63))-1)","v":"KFW_OCEANOGRAFIA_20241005i.xlsm"}]
["DOI Metadato"]
["Fuente Plantilla ","http://cinto.invemar.org.co/download/Plantillas_ARGOS_Plus/"]
[null,null,null,"Si requiere ayuda contacte a:\nKevin S. Moreno (kevin.moreno@invemar.org.co)"]
["ROLES INVOLUCRADOS","NOMBRE DE LA PERSONA",null,"El custodio de los datos es el único autorizado para distribuir este conjunto de datos. El observador y el digitador se comprometen a tomar las medidas necesarias para salvaguardar este conjunto de datos de modo que copia de los mismos no sean obtenidas y/o usadas por terceros no relacionados con el propósito para la cual se recolectó."]
[{"$f":"IF(A19=\"\",\"\",INDEX('Otras referencias'!$H$6:$I$9,MATCH(DIGITADOR!A19,'Otras referencias'!$I$6:$I$9,0),1))","v":""},{"$f":"IF(B19=\"\",\"\",INDEX(referentes!Y:Z,MATCH(B19,referentes!Z:Z,0),1))","v":""}]
[]
[{"$f":"IF(A21=\"\",\"\",INDEX('Otras referencias'!$H$6:$I$9,MATCH(DIGITADOR!A21,'Otras referencias'!$I$6:$I$9,0),1))","v":""},{"$f":"IF(B21=\"\",\"\",INDEX(referentes!Y:Z,MATCH(B21,referentes!Z:Z,0),1))","v":""}]
[]
[{"$f":"IF(A23=\"\",\"\",INDEX('Otras referencias'!$H$6:$I$9,MATCH(DIGITADOR!A23,'Otras referencias'!$I$6:$I$9,0),1))","v":""},{"$f":"IF(B23=\"\",\"\",INDEX(referentes!Y:Z,MATCH(B23,referentes!Z:Z,0),1))","v":""}]
[]
[{"$f":"IF(A25=\"\",\"\",INDEX('Otras referencias'!$H$6:$I$9,MATCH(DIGITADOR!A25,'Otras referencias'!$I$6:$I$9,0),1))","v":""},{"$f":"IF(B25=\"\",\"\",INDEX(referentes!Y:Z,MATCH(B25,referentes!Z:Z,0),1))","v":""}]
[]
[]
["ATRIBUTOS ADICIONALES"]
["Observaciones generales"]
[]
["REGISTROS GENERADOS",null,"CARGADOS"]
["Muestreos",{"$f":"IF(configuracion!B47=\"\",\"\",configuracion!B47)","v":""},{"$f":"IF(configuracion!C47=\"\",\"\",configuracion!C47)","v":""}]
["Parámetros del muestreo",{"$f":"IF(configuracion!B48=\"\",\"\",configuracion!B48)","v":""},{"$f":"IF(configuracion!C48=\"\",\"\",configuracion!C48)","v":""}]
["Registros",{"$f":"IF(configuracion!B49=\"\",\"\",configuracion!B49)","v":""},{"$f":"IF(configuracion!C49=\"\",\"\",configuracion!C49)","v":""}]
["Variables",{"$f":"IF(configuracion!B50=\"\",\"\",configuracion!B50)","v":""},{"$f":"IF(configuracion!C50=\"\",\"\",configuracion!C50)","v":""}]
["Autorías",{"$f":"IF(configuracion!B51=\"\",\"\",configuracion!B51)","v":""},{"$f":"IF(configuracion!C51=\"\",\"\",configuracion!C51)","v":""}]
["Registros correctos",{"$f":"IF(configuracion!B52=\"\",\"\",configuracion!B52)","v":""},{"$f":"IF(configuracion!C52=\"\",\"\",configuracion!C52)","v":""}]
["json error",{"$f":"IF(C41=\"\",\"\",IF(C41=0,0,IF(B41-C41=0,C41,\"Fallaron \"&B41-C41&\" registros\")))","v":""}]
["error",{"$f":"IF(C42=\"\",\"\",IF(C42=0,0,IF(B42-C42=0,C42,\"Fallaron \"&B42-C42&\" registros\")))","v":""}]

{"sheet":"DATOS","index":3,"n_rows":304,"n_cols":16,"rows_kept":304,"cut":false,"hidden":false,"merged":[[0,5,0,8],[0,10,0,15]]}
[null,null,null,null,null,"MUESTREO ",null,null,null,null,"VARIABLES "]
[{"$f":"TEXT(DIGITADOR!$B$9,\"yyyymmdd\")","v":"30001212"},"AGM MUESTREO","ID MUESTREO","ID MUESTRA","ID ESTACION","Estación","Fecha\n(DD/MM/AAAA)","HORA TXT","Hora",null,"Hs ","Tp","DirTp",null,null,"Observaciones"]
[null,{"$f":"IF(C3=\"\",\"\",IF(COUNTIF($C$3:C3, C3)>1, \"\", C3))","v":""},{"$f":"IF(G3=\"\",\"\",CONCATENATE(DIGITADOR!$M$1,G3,E3))","v":""},{"$f":"IF(C3=\"\",\"\",CONCATENATE(C3,ROW()-2))","v":""},{"$f":"IF(F3=\"\",\"\",INDEX(referentes!$S:$S,MATCH(F3,referentes!$W:$W,0)))","v":""},null,null,{"$f":"IF(I3=\"\",\"\",TEXT(I3,\"hh:mm\"))","v":""}]
[null,{"$f":"IF(C4=\"\",\"\",IF(COUNTIF($C$3:C4, C4)>1, \"\", C4))","v":""},{"$f":"IF(G4=\"\",\"\",CONCATENATE(DIGITADOR!$M$1,G4,E4))","v":""},{"$f":"IF(C4=\"\",\"\",CONCATENATE(C4,ROW()-2))","v":""},{"$f":"IF(F4=\"\",\"\",INDEX(referentes!$S:$S,MATCH(F4,referentes!$W:$W,0)))","v":""},null,null,{"$f":"IF(I4=\"\",\"\",TEXT(I4,\"hh:mm\"))","v":""}]
[null,{"$f":"IF(C5=\"\",\"\",IF(COUNTIF($C$3:C5, C5)>1, \"\", C5))","v":""},{"$f":"IF(G5=\"\",\"\",CONCATENATE(DIGITADOR!$M$1,G5,E5))","v":""},"",{"$f":"IF(F5=\"\",\"\",INDEX(referentes!$S:$S,MATCH(F5,referentes!$W:$W,0)))","v":""},null,null,""]
[null,{"$f":"IF(C6=\"\",\"\",IF(COUNTIF($C$3:C6, C6)>1, \"\", C6))","v":""},{"$f":"IF(G6=\"\",\"\",CONCATENATE(DIGITADOR!$M$1,G6,E6))","v":""},"",{"$f":"IF(F6=\"\",\"\",INDEX(referentes!$S:$S,MATCH(F6,referentes!$W:$W,0)))","v":""},null,null,""]
[null,{"$f":"IF(C7=\"\",\"\",IF(COUNTIF($C$3:C7, C7)>1, \"\", C7))","v":""},{"$f":"IF(G7=\"\",\"\",CONCATENATE(DIGITADOR!$M$1,G7,E7))","v":""},"",{"$f":"IF(F7=\"\",\"\",INDEX(referentes!$S:$S,MATCH(F7,referentes!$W:$W,0)))","v":""},null,null,""]
[null,{"$f":"IF(C8=\"\",\"\",IF(COUNTIF($C$3:C8, C8)>1, \"\", C8))","v":""},{"$f":"IF(G8=\"\",\"\",CONCATENATE(DIGITADOR!$M$1,G8,E8))","v":""},"",{"$f":"IF(F8=\"\",\"\",INDEX(referentes!$S:$S,MATCH(F8,referentes!$W:$W,0)))","v":""},null,null,""]
[null,{"$f":"IF(C9=\"\",\"\",IF(COUNTIF($C$3:C9, C9)>1, \"\", C9))","v":""},{"$f":"IF(G9=\"\",\"\",CONCATENATE(DIGITADOR!$M$1,G9,E9))","v":""},"",{"$f":"IF(F9=\"\",\"\",INDEX(referentes!$S:$S,MATCH(F9,referentes!$W:$W,0)))","v":""},null,null,""]
[null,{"$f":"IF(C10=\"\",\"\",IF(COUNTIF($C$3:C10, C10)>1, \"\", C10))","v":""},{"$f":"IF(G10=\"\",\"\",CONCATENATE(DIGITADOR!$M$1,G10,E10))","v":""},"",{"$f":"IF(F10=\"\",\"\",INDEX(referentes!$S:$S,MATCH(F10,referentes!$W:$W,0)))","v":""},null,null,""]
[null,{"$f":"IF(C11=\"\",\"\",IF(COUNTIF($C$3:C11, C11)>1, \"\", C11))","v":""},{"$f":"IF(G11=\"\",\"\",CONCATENATE(DIGITADOR!$M$1,G11,E11))","v":""},"",{"$f":"IF(F11=\"\",\"\",INDEX(referentes!$S:$S,MATCH(F11,referentes!$W:$W,0)))","v":""},null,null,""]
[null,{"$f":"IF(C12=\"\",\"\",IF(COUNTIF($C$3:C12, C12)>1, \"\", C12))","v":""},{"$f":"IF(G12=\"\",\"\",CONCATENATE(DIGITADOR!$M$1,G12,E12))","v":""},"",{"$f":"IF(F12=\"\",\"\",INDEX(referentes!$S:$S,MATCH(F12,referentes!$W:$W,0)))","v":""},null,null,""]
[null,{"$f":"IF(C13=\"\",\"\",IF(COUNTIF($C$3:C13, C13)>1, \"\", C13))","v":""},{"$f":"IF(G13=\"\",\"\",CONCATENATE(DIGITADOR!$M$1,G13,E13))","v":""},"",{"$f":"IF(F13=\"\",\"\",INDEX(referentes!$S:$S,MATCH(F13,referentes!$W:$W,0)))","v":""},null,null,""]
[null,{"$f":"IF(C14=\"\",\"\",IF(COUNTIF($C$3:C14, C14)>1, \"\", C14))","v":""},{"$f":"IF(G14=\"\",\"\",CONCATENATE(DIGITADOR!$M$1,G14,E14))","v":""},"",{"$f":"IF(F14=\"\",\"\",INDEX(referentes!$S:$S,MATCH(F14,referentes!$W:$W,0)))","v":""},null,null,""]
[null,{"$f":"IF(C15=\"\",\"\",IF(COUNTIF($C$3:C15, C15)>1, \"\", C15))","v":""},{"$f":"IF(G15=\"\",\"\",CONCATENATE(DIGITADOR!$M$1,G15,E15))","v":""},"",{"$f":"IF(F15=\"\",\"\",INDEX(referentes!$S:$S,MATCH(F15,referentes!$W:$W,0)))","v":""},null,null,""]
[null,{"$f":"IF(C16=\"\",\"\",IF(COUNTIF($C$3:C16, C16)>1, \"\", C16))","v":""},{"$f":"IF(G16=\"\",\"\",CONCATENATE(DIGITADOR!$M$1,G16,E16))","v":""},"",{"$f":"IF(F16=\"\",\"\",INDEX(referentes!$S:$S,MATCH(F16,referentes!$W:$W,0)))","v":""},null,null,""]
[null,{"$f":"IF(C17=\"\",\"\",IF(COUNTIF($C$3:C17, C17)>1, \"\", C17))","v":""},{"$f":"IF(G17=\"\",\"\",CONCATENATE(DIGITADOR!$M$1,G17,E17))","v":""},"",{"$f":"IF(F17=\"\",\"\",INDEX(referentes!$S:$S,MATCH(F17,referentes!$W:$W,0)))","v":""},null,null,""]
[null,{"$f":"IF(C18=\"\",\"\",IF(COUNTIF($C$3:C18, C18)>1, \"\", C18))","v":""},{"$f":"IF(G18=\"\",\"\",CONCATENATE(DIGITADOR!$M$1,G18,E18))","v":""},"",{"$f":"IF(F18=\"\",\"\",INDEX(referentes!$S:$S,MATCH(F18,referentes!$W:$W,0)))","v":""},null,null,""]
[null,{"$f":"IF(C19=\"\",\"\",IF(COUNTIF($C$3:C19, C19)>1, \"\", C19))","v":""},{"$f":"IF(G19=\"\",\"\",CONCATENATE(DIGITADOR!$M$1,G19,E19))","v":""},"",{"$f":"IF(F19=\"\",\"\",INDEX(referentes!$S:$S,MATCH(F19,referentes!$W:$W,0)))","v":""},null,null,""]
[null,{"$f":"IF(C20=\"\",\"\",IF(COUNTIF($C$3:C20, C20)>1, \"\", C20))","v":""},{"$f":"IF(G20=\"\",\"\",CONCATENATE(DIGITADOR!$M$1,G20,E20))","v":""},"",{"$f":"IF(F20=\"\",\"\",INDEX(referentes!$S:$S,MATCH(F20,referentes!$W:$W,0)))","v":""},null,null,""]
[null,{"$f":"IF(C21=\"\",\"\",IF(COUNTIF($C$3:C21, C21)>1, \"\", C21))","v":""},{"$f":"IF(G21=\"\",\"\",CONCATENATE(DIGITADOR!$M$1,G21,E21))","v":""},"",{"$f":"IF(F21=\"\",\"\",INDEX(referentes!$S:$S,MATCH(F21,referentes!$W:$W,0)))","v":""},null,null,""]
[null,{"$f":"IF(C22=\"\",\"\",IF(COUNTIF($C$3:C22, C22)>1, \"\", C22))","v":""},{"$f":"IF(G22=\"\",\"\",CONCATENATE(DIGITADOR!$M$1,G22,E22))","v":""},"",{"$f":"IF(F22=\"\",\"\",INDEX(referentes!$S:$S,MATCH(F22,referentes!$W:$W,0)))","v":""},null,null,""]
[null,{"$f":"IF(C23=\"\",\"\",IF(COUNTIF($C$3:C23, C23)>1, \"\", C23))","v":""},{"$f":"IF(G23=\"\",\"\",CONCATENATE(DIGITADOR!$M$1,G23,E23))","v":""},"",{"$f":"IF(F23=\"\",\"\",INDEX(referentes!$S:$S,MATCH(F23,referentes!$W:$W,0)))","v":""},null,null,""]
[null,{"$f":"IF(C24=\"\",\"\",IF(COUNTIF($C$3:C24, C24)>1, \"\", C24))","v":""},{"$f":"IF(G24=\"\",\"\",CONCATENATE(DIGITADOR!$M$1,G24,E24))","v":""},"",{"$f":"IF(F24=\"\",\"\",INDEX(referentes!$S:$S,MATCH(F24,referentes!$W:$W,0)))","v":""},null,null,""]
[null,{"$f":"IF(C25=\"\",\"\",IF(COUNTIF($C$3:C25, C25)>1, \"\", C25))","v":""},{"$f":"IF(G25=\"\",\"\",CONCATENATE(DIGITADOR!$M$1,G25,E25))","v":""},"",{"$f":"IF(F25=\"\",\"\",INDEX(referentes!$S:$S,MATCH(F25,referentes!$W:$W,0)))","v":""},null,null,""]
[null,{"$f":"IF(C26=\"\",\"\",IF(COUNTIF($C$3:C26, C26)>1, \"\", C26))","v":""},{"$f":"IF(G26=\"\",\"\",CONCATENATE(DIGITADOR!$M$1,G26,E26))","v":""},"",{"$f":"IF(F26=\"\",\"\",INDEX(referentes!$S:$S,MATCH(F26,referentes!$W:$W,0)))","v":""},null,null,""]
[null,{"$f":"IF(C27=\"\",\"\",IF(COUNTIF($C$3:C27, C27)>1, \"\", C27))","v":""},{"$f":"IF(G27=\"\",\"\",CONCATENATE(DIGITADOR!$M$1,G27,E27))","v":""},"",{"$f":"IF(F27=\"\",\"\",INDEX(referentes!$S:$S,MATCH(F27,referentes!$W:$W,0)))","v":""},null,null,""]
[null,{"$f":"IF(C28=\"\",\"\",IF(COUNTIF($C$3:C28, C28)>1, \"\", C28))","v":""},{"$f":"IF(G28=\"\",\"\",CONCATENATE(DIGITADOR!$M$1,G28,E28))","v":""},"",{"$f":"IF(F28=\"\",\"\",INDEX(referentes!$S:$S,MATCH(F28,referentes!$W:$W,0)))","v":""},null,null,""]
[null,{"$f":"IF(C29=\"\",\"\",IF(COUNTIF($C$3:C29, C29)>1, \"\", C29))","v":""},{"$f":"IF(G29=\"\",\"\",CONCATENATE(DIGITADOR!$M$1,G29,E29))","v":""},"",{"$f":"IF(F29=\"\",\"\",INDEX(referentes!$S:$S,MATCH(F29,referentes!$W:$W,0)))","v":""},null,null,""]
[null,{"$f":"IF(C30=\"\",\"\",IF(COUNTIF($C$3:C30, C30)>1, \"\", C30))","v":""},{"$f":"IF(G30=\"\",\"\",CONCATENATE(DIGITADOR!$M$1,G30,E30))","v":""},"",{"$f":"IF(F30=\"\",\"\",INDEX(referentes!$S:$S,MATCH(F30,referentes!$W:$W,0)))","v":""},null,null,""]
[null,{"$f":"IF(C31=\"\",\"\",IF(COUNTIF($C$3:C31, C31)>1, \"\", C31))","v":""},{"$f":"IF(G31=\"\",\"\",CONCATENATE(DIGITADOR!$M$1,G31,E31))","v":""},"",{"$f":"IF(F31=\"\",\"\",INDEX(referentes!$S:$S,MATCH(F31,referentes!$W:$W,0)))","v":""},null,null,""]
[null,{"$f":"IF(C32=\"\",\"\",IF(COUNTIF($C$3:C32, C32)>1, \"\", C32))","v":""},{"$f":"IF(G32=\"\",\"\",CONCATENATE(DIGITADOR!$M$1,G32,E32))","v":""},"",{"$f":"IF(F32=\"\",\"\",INDEX(referentes!$S:$S,MATCH(F32,referentes!$W:$W,0)))","v":""},null,null,""]
[null,{"$f":"IF(C33=\"\",\"\",IF(COUNTIF($C$3:C33, C33)>1, \"\", C33))","v":""},{"$f":"IF(G33=\"\",\"\",CONCATENATE(DIGITADOR!$M$1,G33,E33))","v":""},"",{"$f":"IF(F33=\"\",\"\",INDEX(referentes!$S:$S,MATCH(F33,referentes!$W:$W,0)))","v":""},null,null,""]
[null,{"$f":"IF(C34=\"\",\"\",IF(COUNTIF($C$3:C34, C34)>1, \"\", C34))","v":""},{"$f":"IF(G34=\"\",\"\",CONCATENATE(DIGITADOR!$M$1,G34,E34))","v":""},"",{"$f":"IF(F34=\"\",\"\",INDEX(referentes!$S:$S,MATCH(F34,referentes!$W:$W,0)))","v":""},null,null,""]
[null,{"$f":"IF(C35=\"\",\"\",IF(COUNTIF($C$3:C35, C35)>1, \"\", C35))","v":""},{"$f":"IF(G35=\"\",\"\",CONCATENATE(DIGITADOR!$M$1,G35,E35))","v":""},"",{"$f":"IF(F35=\"\",\"\",INDEX(referentes!$S:$S,MATCH(F35,referentes!$W:$W,0)))","v":""},null,null,""]
[null,{"$f":"IF(C36=\"\",\"\",IF(COUNTIF($C$3:C36, C36)>1, \"\", C36))","v":""},{"$f":"IF(G36=\"\",\"\",CONCATENATE(DIGITADOR!$M$1,G36,E36))","v":""},"",{"$f":"IF(F36=\"\",\"\",INDEX(referentes!$S:$S,MATCH(F36,referentes!$W:$W,0)))","v":""},null,null,""]
[null,{"$f":"IF(C37=\"\",\"\",IF(COUNTIF($C$3:C37, C37)>1, \"\", C37))","v":""},{"$f":"IF(G37=\"\",\"\",CONCATENATE(DIGITADOR!$M$1,G37,E37))","v":""},"",{"$f":"IF(F37=\"\",\"\",INDEX(referentes!$S:$S,MATCH(F37,referentes!$W:$W,0)))","v":""},null,null,""]
[null,{"$f":"IF(C38=\"\",\"\",IF(COUNTIF($C$3:C38, C38)>1, \"\", C38))","v":""},{"$f":"IF(G38=\"\",\"\",CONCATENATE(DIGITADOR!$M$1,G38,E38))","v":""},"",{"$f":"IF(F38=\"\",\"\",INDEX(referentes!$S:$S,MATCH(F38,referentes!$W:$W,0)))","v":""},null,null,""]
[null,{"$f":"IF(C39=\"\",\"\",IF(COUNTIF($C$3:C39, C39)>1, \"\", C39))","v":""},{"$f":"IF(G39=\"\",\"\",CONCATENATE(DIGITADOR!$M$1,G39,E39))","v":""},"",{"$f":"IF(F39=\"\",\"\",INDEX(referentes!$S:$S,MATCH(F39,referentes!$W:$W,0)))","v":""},null,null,""]
[null,{"$f":"IF(C40=\"\",\"\",IF(COUNTIF($C$3:C40, C40)>1, \"\", C40))","v":""},{"$f":"IF(G40=\"\",\"\",CONCATENATE(DIGITADOR!$M$1,G40,E40))","v":""},"",{"$f":"IF(F40=\"\",\"\",INDEX(referentes!$S:$S,MATCH(F40,referentes!$W:$W,0)))","v":""},null,null,""]
[null,{"$f":"IF(C41=\"\",\"\",IF(COUNTIF($C$3:C41, C41)>1, \"\", C41))","v":""},{"$f":"IF(G41=\"\",\"\",CONCATENATE(DIGITADOR!$M$1,G41,E41))","v":""},"",{"$f":"IF(F41=\"\",\"\",INDEX(referentes!$S:$S,MATCH(F41,referentes!$W:$W,0)))","v":""},null,null,""]
[null,{"$f":"IF(C42=\"\",\"\",IF(COUNTIF($C$3:C42, C42)>1, \"\", C42))","v":""},{"$f":"IF(G42=\"\",\"\",CONCATENATE(DIGITADOR!$M$1,G42,E42))","v":""},"",{"$f":"IF(F42=\"\",\"\",INDEX(referentes!$S:$S,MATCH(F42,referentes!$W:$W,0)))","v":""},null,null,""]
[null,{"$f":"IF(C43=\"\",\"\",IF(COUNTIF($C$3:C43, C43)>1, \"\", C43))","v":""},{"$f":"IF(G43=\"\",\"\",CONCATENATE(DIGITADOR!$M$1,G43,E43))","v":""},"",{"$f":"IF(F43=\"\",\"\",INDEX(referentes!$S:$S,MATCH(F43,referentes!$W:$W,0)))","v":""},null,null,""]
[null,{"$f":"IF(C44=\"\",\"\",IF(COUNTIF($C$3:C44, C44)>1, \"\", C44))","v":""},{"$f":"IF(G44=\"\",\"\",CONCATENATE(DIGITADOR!$M$1,G44,E44))","v":""},"",{"$f":"IF(F44=\"\",\"\",INDEX(referentes!$S:$S,MATCH(F44,referentes!$W:$W,0)))","v":""},null,null,""]
[null,{"$f":"IF(C45=\"\",\"\",IF(COUNTIF($C$3:C45, C45)>1, \"\", C45))","v":""},{"$f":"IF(G45=\"\",\"\",CONCATENATE(DIGITADOR!$M$1,G45,E45))","v":""},"",{"$f":"IF(F45=\"\",\"\",INDEX(referentes!$S:$S,MATCH(F45,referentes!$W:$W,0)))","v":""},null,null,""]
[null,{"$f":"IF(C46=\"\",\"\",IF(COUNTIF($C$3:C46, C46)>1, \"\", C46))","v":""},{"$f":"IF(G46=\"\",\"\",CONCATENATE(DIGITADOR!$M$1,G46,E46))","v":""},"",{"$f":"IF(F46=\"\",\"\",INDEX(referentes!$S:$S,MATCH(F46,referentes!$W:$W,0)))","v":""},null,null,""]
[null,{"$f":"IF(C47=\"\",\"\",IF(COUNTIF($C$3:C47, C47)>1, \"\", C47))","v":""},{"$f":"IF(G47=\"\",\"\",CONCATENATE(DIGITADOR!$M$1,G47,E47))","v":""},"",{"$f":"IF(F47=\"\",\"\",INDEX(referentes!$S:$S,MATCH(F47,referentes!$W:$W,0)))","v":""},null,null,""]
[null,{"$f":"IF(C48=\"\",\"\",IF(COUNTIF($C$3:C48, C48)>1, \"\", C48))","v":""},{"$f":"IF(G48=\"\",\"\",CONCATENATE(DIGITADOR!$M$1,G48,E48))","v":""},"",{"$f":"IF(F48=\"\",\"\",INDEX(referentes!$S:$S,MATCH(F48,referentes!$W:$W,0)))","v":""},null,null,""]
[null,{"$f":"IF(C49=\"\",\"\",IF(COUNTIF($C$3:C49, C49)>1, \"\", C49))","v":""},{"$f":"IF(G49=\"\",\"\",CONCATENATE(DIGITADOR!$M$1,G49,E49))","v":""},"",{"$f":"IF(F49=\"\",\"\",INDEX(referentes!$S:$S,MATCH(F49,referentes!$W:$W,0)))","v":""},null,null,""]
[null,{"$f":"IF(C50=\"\",\"\",IF(COUNTIF($C$3:C50, C50)>1, \"\", C50))","v":""},{"$f":"IF(G50=\"\",\"\",CONCATENATE(DIGITADOR!$M$1,G50,E50))","v":""},"",{"$f":"IF(F50=\"\",\"\",INDEX(referentes!$S:$S,MATCH(F50,referentes!$W:$W,0)))","v":""},null,null,""]
[null,{"$f":"IF(C51=\"\",\"\",IF(COUNTIF($C$3:C51, C51)>1, \"\", C51))","v":""},{"$f":"IF(G51=\"\",\"\",CONCATENATE(DIGITADOR!$M$1,G51,E51))","v":""},"",{"$f":"IF(F51=\"\",\"\",INDEX(referentes!$S:$S,MATCH(F51,referentes!$W:$W,0)))","v":""},null,null,""]
[null,{"$f":"IF(C52=\"\",\"\",IF(COUNTIF($C$3:C52, C52)>1, \"\", C52))","v":""},{"$f":"IF(G52=\"\",\"\",CONCATENATE(DIGITADOR!$M$1,G52,E52))","v":""},"",{"$f":"IF(F52=\"\",\"\",INDEX(referentes!$S:$S,MATCH(F52,referentes!$W:$W,0)))","v":""},null,null,""]
[null,{"$f":"IF(C53=\"\",\"\",IF(COUNTIF($C$3:C53, C53)>1, \"\", C53))","v":""},{"$f":"IF(G53=\"\",\"\",CONCATENATE(DIGITADOR!$M$1,G53,E53))","v":""},"",{"$f":"IF(F53=\"\",\"\",INDEX(referentes!$S:$S,MATCH(F53,referentes!$W:$W,0)))","v":""},null,null,""]
[null,{"$f":"IF(C54=\"\",\"\",IF(COUNTIF($C$3:C54, C54)>1, \"\", C54))","v":""},{"$f":"IF(G54=\"\",\"\",CONCATENATE(DIGITADOR!$M$1,G54,E54))","v":""},"",{"$f":"IF(F54=\"\",\"\",INDEX(referentes!$S:$S,MATCH(F54,referentes!$W:$W,0)))","v":""},null,null,""]
[null,{"$f":"IF(C55=\"\",\"\",IF(COUNTIF($C$3:C55, C55)>1, \"\", C55))","v":""},{"$f":"IF(G55=\"\",\"\",CONCATENATE(DIGITADOR!$M$1,G55,E55))","v":""},"",{"$f":"IF(F55=\"\",\"\",INDEX(referentes!$S:$S,MATCH(F55,referentes!$W:$W,0)))","v":""},null,null,""]
[null,{"$f":"IF(C56=\"\",\"\",IF(COUNTIF($C$3:C56, C56)>1, \"\", C56))","v":""},{"$f":"IF(G56=\"\",\"\",CONCATENATE(DIGITADOR!$M$1,G56,E56))","v":""},"",{"$f":"IF(F56=\"\",\"\",INDEX(referentes!$S:$S,MATCH(F56,referentes!$W:$W,0)))","v":""},null,null,""]
[null,{"$f":"IF(C57=\"\",\"\",IF(COUNTIF($C$3:C57, C57)>1, \"\", C57))","v":""},{"$f":"IF(G57=\"\",\"\",CONCATENATE(DIGITADOR!$M$1,G57,E57))","v":""},"",{"$f":"IF(F57=\"\",\"\",INDEX(referentes!$S:$S,MATCH(F57,referentes!$W:$W,0)))","v":""},null,null,""]
[null,{"$f":"IF(C58=\"\",\"\",IF(COUNTIF($C$3:C58, C58)>1, \"\", C58))","v":""},{"$f":"IF(G58=\"\",\"\",CONCATENATE(DIGITADOR!$M$1,G58,E58))","v":""},"",{"$f":"IF(F58=\"\",\"\",INDEX(referentes!$S:$S,MATCH(F58,referentes!$W:$W,0)))","v":""},null,null,""]
[null,{"$f":"IF(C59=\"\",\"\",IF(COUNTIF($C$3:C59, C59)>1, \"\", C59))","v":""},{"$f":"IF(G59=\"\",\"\",CONCATENATE(DIGITADOR!$M$1,G59,E59))","v":""},"",{"$f":"IF(F59=\"\",\"\",INDEX(referentes!$S:$S,MATCH(F59,referentes!$W:$W,0)))","v":""},null,null,""]
[null,{"$f":"IF(C60=\"\",\"\",IF(COUNTIF($C$3:C60, C60)>1, \"\", C60))","v":""},{"$f":"IF(G60=\"\",\"\",CONCATENATE(DIGITADOR!$M$1,G60,E60))","v":""},"",{"$f":"IF(F60=\"\",\"\",INDEX(referentes!$S:$S,MATCH(F60,referentes!$W:$W,0)))","v":""},null,null,""]
[null,{"$f":"IF(C61=\"\",\"\",IF(COUNTIF($C$3:C61, C61)>1, \"\", C61))","v":""},{"$f":"IF(G61=\"\",\"\",CONCATENATE(DIGITADOR!$M$1,G61,E61))","v":""},"",{"$f":"IF(F61=\"\",\"\",INDEX(referentes!$S:$S,MATCH(F61,referentes!$W:$W,0)))","v":""},null,null,""]
[null,{"$f":"IF(C62=\"\",\"\",IF(COUNTIF($C$3:C62, C62)>1, \"\", C62))","v":""},{"$f":"IF(G62=\"\",\"\",CONCATENATE(DIGITADOR!$M$1,G62,E62))","v":""},"",{"$f":"IF(F62=\"\",\"\",INDEX(referentes!$S:$S,MATCH(F62,referentes!$W:$W,0)))","v":""},null,null,""]
[null,{"$f":"IF(C63=\"\",\"\",IF(COUNTIF($C$3:C63, C63)>1, \"\", C63))","v":""},{"$f":"IF(G63=\"\",\"\",CONCATENATE(DIGITADOR!$M$1,G63,E63))","v":""},"",{"$f":"IF(F63=\"\",\"\",INDEX(referentes!$S:$S,MATCH(F63,referentes!$W:$W,0)))","v":""},null,null,""]
[null,{"$f":"IF(C64=\"\",\"\",IF(COUNTIF($C$3:C64, C64)>1, \"\", C64))","v":""},{"$f":"IF(G64=\"\",\"\",CONCATENATE(DIGITADOR!$M$1,G64,E64))","v":""},"",{"$f":"IF(F64=\"\",\"\",INDEX(referentes!$S:$S,MATCH(F64,referentes!$W:$W,0)))","v":""},null,null,""]
[null,{"$f":"IF(C65=\"\",\"\",IF(COUNTIF($C$3:C65, C65)>1, \"\", C65))","v":""},{"$f":"IF(G65=\"\",\"\",CONCATENATE(DIGITADOR!$M$1,G65,E65))","v":""},"",{"$f":"IF(F65=\"\",\"\",INDEX(referentes!$S:$S,MATCH(F65,referentes!$W:$W,0)))","v":""},null,null,""]
[null,{"$f":"IF(C66=\"\",\"\",IF(COUNTIF($C$3:C66, C66)>1, \"\", C66))","v":""},{"$f":"IF(G66=\"\",\"\",CONCATENATE(DIGITADOR!$M$1,G66,E66))","v":""},"",{"$f":"IF(F66=\"\",\"\",INDEX(referentes!$S:$S,MATCH(F66,referentes!$W:$W,0)))","v":""},null,null,""]
[null,{"$f":"IF(C67=\"\",\"\",IF(COUNTIF($C$3:C67, C67)>1, \"\", C67))","v":""},{"$f":"IF(G67=\"\",\"\",CONCATENATE(DIGITADOR!$M$1,G67,E67))","v":""},"",{"$f":"IF(F67=\"\",\"\",INDEX(referentes!$S:$S,MATCH(F67,referentes!$W:$W,0)))","v":""},null,null,""]
[null,{"$f":"IF(C68=\"\",\"\",IF(COUNTIF($C$3:C68, C68)>1, \"\", C68))","v":""},{"$f":"IF(G68=\"\",\"\",CONCATENATE(DIGITADOR!$M$1,G68,E68))","v":""},{"$f":"IF(C68=\"\",\"\",CONCATENATE(C68,ROW()-2))","v":""},{"$f":"IF(F68=\"\",\"\",INDEX(referentes!$S:$S,MATCH(F68,referentes!$W:$W,0)))","v":""},null,null,{"$f":"IF(I68=\"\",\"\",TEXT(I68,\"hh:mm\"))","v":""}]
[null,{"$f":"IF(C69=\"\",\"\",IF(COUNTIF($C$3:C69, C69)>1, \"\", C69))","v":""},{"$f":"IF(G69=\"\",\"\",CONCATENATE(DIGITADOR!$M$1,G69,E69))","v":""},"",{"$f":"IF(F69=\"\",\"\",INDEX(referentes!$S:$S,MATCH(F69,referentes!$W:$W,0)))","v":""},null,null,""]
[null,{"$f":"IF(C70=\"\",\"\",IF(COUNTIF($C$3:C70, C70)>1, \"\", C70))","v":""},{"$f":"IF(G70=\"\",\"\",CONCATENATE(DIGITADOR!$M$1,G70,E70))","v":""},"",{"$f":"IF(F70=\"\",\"\",INDEX(referentes!$S:$S,MATCH(F70,referentes!$W:$W,0)))","v":""},null,null,""]
[null,{"$f":"IF(C71=\"\",\"\",IF(COUNTIF($C$3:C71, C71)>1, \"\", C71))","v":""},{"$f":"IF(G71=\"\",\"\",CONCATENATE(DIGITADOR!$M$1,G71,E71))","v":""},"",{"$f":"IF(F71=\"\",\"\",INDEX(referentes!$S:$S,MATCH(F71,referentes!$W:$W,0)))","v":""},null,null,""]
[null,{"$f":"IF(C72=\"\",\"\",IF(COUNTIF($C$3:C72, C72)>1, \"\", C72))","v":""},{"$f":"IF(G72=\"\",\"\",CONCATENATE(DIGITADOR!$M$1,G72,E72))","v":""},"",{"$f":"IF(F72=\"\",\"\",INDEX(referentes!$S:$S,MATCH(F72,referentes!$W:$W,0)))","v":""},null,null,""]
[null,{"$f":"IF(C73=\"\",\"\",IF(COUNTIF($C$3:C73, C73)>1, \"\", C73))","v":""},{"$f":"IF(G73=\"\",\"\",CONCATENATE(DIGITADOR!$M$1,G73,E73))","v":""},"",{"$f":"IF(F73=\"\",\"\",INDEX(referentes!$S:$S,MATCH(F73,referentes!$W:$W,0)))","v":""},null,null,""]
[null,{"$f":"IF(C74=\"\",\"\",IF(COUNTIF($C$3:C74, C74)>1, \"\", C74))","v":""},{"$f":"IF(G74=\"\",\"\",CONCATENATE(DIGITADOR!$M$1,G74,E74))","v":""},"",{"$f":"IF(F74=\"\",\"\",INDEX(referentes!$S:$S,MATCH(F74,referentes!$W:$W,0)))","v":""},null,null,""]
[null,{"$f":"IF(C75=\"\",\"\",IF(COUNTIF($C$3:C75, C75)>1, \"\", C75))","v":""},{"$f":"IF(G75=\"\",\"\",CONCATENATE(DIGITADOR!$M$1,G75,E75))","v":""},"",{"$f":"IF(F75=\"\",\"\",INDEX(referentes!$S:$S,MATCH(F75,referentes!$W:$W,0)))","v":""},null,null,""]
[null,{"$f":"IF(C76=\"\",\"\",IF(COUNTIF($C$3:C76, C76)>1, \"\", C76))","v":""},{"$f":"IF(G76=\"\",\"\",CONCATENATE(DIGITADOR!$M$1,G76,E76))","v":""},"",{"$f":"IF(F76=\"\",\"\",INDEX(referentes!$S:$S,MATCH(F76,referentes!$W:$W,0)))","v":""},null,null,""]
[null,{"$f":"IF(C77=\"\",\"\",IF(COUNTIF($C$3:C77, C77)>1, \"\", C77))","v":""},{"$f":"IF(G77=\"\",\"\",CONCATENATE(DIGITADOR!$M$1,G77,E77))","v":""},"",{"$f":"IF(F77=\"\",\"\",INDEX(referentes!$S:$S,MATCH(F77,referentes!$W:$W,0)))","v":""},null,null,""]
[null,{"$f":"IF(C78=\"\",\"\",IF(COUNTIF($C$3:C78, C78)>1, \"\", C78))","v":""},{"$f":"IF(G78=\"\",\"\",CONCATENATE(DIGITADOR!$M$1,G78,E78))","v":""},"",{"$f":"IF(F78=\"\",\"\",INDEX(referentes!$S:$S,MATCH(F78,referentes!$W:$W,0)))","v":""},null,null,""]
[null,{"$f":"IF(C79=\"\",\"\",IF(COUNTIF($C$3:C79, C79)>1, \"\", C79))","v":""},{"$f":"IF(G79=\"\",\"\",CONCATENATE(DIGITADOR!$M$1,G79,E79))","v":""},"",{"$f":"IF(F79=\"\",\"\",INDEX(referentes!$S:$S,MATCH(F79,referentes!$W:$W,0)))","v":""},null,null,""]
[null,{"$f":"IF(C80=\"\",\"\",IF(COUNTIF($C$3:C80, C80)>1, \"\", C80))","v":""},{"$f":"IF(G80=\"\",\"\",CONCATENATE(DIGITADOR!$M$1,G80,E80))","v":""},"",{"$f":"IF(F80=\"\",\"\",INDEX(referentes!$S:$S,MATCH(F80,referentes!$W:$W,0)))","v":""},null,null,""]
[null,{"$f":"IF(C81=\"\",\"\",IF(COUNTIF($C$3:C81, C81)>1, \"\", C81))","v":""},{"$f":"IF(G81=\"\",\"\",CONCATENATE(DIGITADOR!$M$1,G81,E81))","v":""},"",{"$f":"IF(F81=\"\",\"\",INDEX(referentes!$S:$S,MATCH(F81,referentes!$W:$W,0)))","v":""},null,null,""]
[null,{"$f":"IF(C82=\"\",\"\",IF(COUNTIF($C$3:C82, C82)>1, \"\", C82))","v":""},{"$f":"IF(G82=\"\",\"\",CONCATENATE(DIGITADOR!$M$1,G82,E82))","v":""},"",{"$f":"IF(F82=\"\",\"\",INDEX(referentes!$S:$S,MATCH(F82,referentes!$W:$W,0)))","v":""},null,null,""]
[null,{"$f":"IF(C83=\"\",\"\",IF(COUNTIF($C$3:C83, C83)>1, \"\", C83))","v":""},{"$f":"IF(G83=\"\",\"\",CONCATENATE(DIGITADOR!$M$1,G83,E83))","v":""},"",{"$f":"IF(F83=\"\",\"\",INDEX(referentes!$S:$S,MATCH(F83,referentes!$W:$W,0)))","v":""},null,null,""]
[null,{"$f":"IF(C84=\"\",\"\",IF(COUNTIF($C$3:C84, C84)>1, \"\", C84))","v":""},{"$f":"IF(G84=\"\",\"\",CONCATENATE(DIGITADOR!$M$1,G84,E84))","v":""},"",{"$f":"IF(F84=\"\",\"\",INDEX(referentes!$S:$S,MATCH(F84,referentes!$W:$W,0)))","v":""},null,null,""]
[null,{"$f":"IF(C85=\"\",\"\",IF(COUNTIF($C$3:C85, C85)>1, \"\", C85))","v":""},{"$f":"IF(G85=\"\",\"\",CONCATENATE(DIGITADOR!$M$1,G85,E85))","v":""},"",{"$f":"IF(F85=\"\",\"\",INDEX(referentes!$S:$S,MATCH(F85,referentes!$W:$W,0)))","v":""},null,null,""]
[null,{"$f":"IF(C86=\"\",\"\",IF(COUNTIF($C$3:C86, C86)>1, \"\", C86))","v":""},{"$f":"IF(G86=\"\",\"\",CONCATENATE(DIGITADOR!$M$1,G86,E86))","v":""},"",{"$f":"IF(F86=\"\",\"\",INDEX(referentes!$S:$S,MATCH(F86,referentes!$W:$W,0)))","v":""},null,null,""]
[null,{"$f":"IF(C87=\"\",\"\",IF(COUNTIF($C$3:C87, C87)>1, \"\", C87))","v":""},{"$f":"IF(G87=\"\",\"\",CONCATENATE(DIGITADOR!$M$1,G87,E87))","v":""},"",{"$f":"IF(F87=\"\",\"\",INDEX(referentes!$S:$S,MATCH(F87,referentes!$W:$W,0)))","v":""},null,null,""]
[null,{"$f":"IF(C88=\"\",\"\",IF(COUNTIF($C$3:C88, C88)>1, \"\", C88))","v":""},{"$f":"IF(G88=\"\",\"\",CONCATENATE(DIGITADOR!$M$1,G88,E88))","v":""},"",{"$f":"IF(F88=\"\",\"\",INDEX(referentes!$S:$S,MATCH(F88,referentes!$W:$W,0)))","v":""},null,null,""]
[null,{"$f":"IF(C89=\"\",\"\",IF(COUNTIF($C$3:C89, C89)>1, \"\", C89))","v":""},{"$f":"IF(G89=\"\",\"\",CONCATENATE(DIGITADOR!$M$1,G89,E89))","v":""},"",{"$f":"IF(F89=\"\",\"\",INDEX(referentes!$S:$S,MATCH(F89,referentes!$W:$W,0)))","v":""},null,null,""]
[null,{"$f":"IF(C90=\"\",\"\",IF(COUNTIF($C$3:C90, C90)>1, \"\", C90))","v":""},{"$f":"IF(G90=\"\",\"\",CONCATENATE(DIGITADOR!$M$1,G90,E90))","v":""},"",{"$f":"IF(F90=\"\",\"\",INDEX(referentes!$S:$S,MATCH(F90,referentes!$W:$W,0)))","v":""},null,null,""]
[null,{"$f":"IF(C91=\"\",\"\",IF(COUNTIF($C$3:C91, C91)>1, \"\", C91))","v":""},{"$f":"IF(G91=\"\",\"\",CONCATENATE(DIGITADOR!$M$1,G91,E91))","v":""},"",{"$f":"IF(F91=\"\",\"\",INDEX(referentes!$S:$S,MATCH(F91,referentes!$W:$W,0)))","v":""},null,null,""]
[null,{"$f":"IF(C92=\"\",\"\",IF(COUNTIF($C$3:C92, C92)>1, \"\", C92))","v":""},{"$f":"IF(G92=\"\",\"\",CONCATENATE(DIGITADOR!$M$1,G92,E92))","v":""},"",{"$f":"IF(F92=\"\",\"\",INDEX(referentes!$S:$S,MATCH(F92,referentes!$W:$W,0)))","v":""},null,null,""]
[null,{"$f":"IF(C93=\"\",\"\",IF(COUNTIF($C$3:C93, C93)>1, \"\", C93))","v":""},{"$f":"IF(G93=\"\",\"\",CONCATENATE(DIGITADOR!$M$1,G93,E93))","v":""},"",{"$f":"IF(F93=\"\",\"\",INDEX(referentes!$S:$S,MATCH(F93,referentes!$W:$W,0)))","v":""},null,null,""]
[null,{"$f":"IF(C94=\"\",\"\",IF(COUNTIF($C$3:C94, C94)>1, \"\", C94))","v":""},{"$f":"IF(G94=\"\",\"\",CONCATENATE(DIGITADOR!$M$1,G94,E94))","v":""},"",{"$f":"IF(F94=\"\",\"\",INDEX(referentes!$S:$S,MATCH(F94,referentes!$W:$W,0)))","v":""},null,null,""]
[null,{"$f":"IF(C95=\"\",\"\",IF(COUNTIF($C$3:C95, C95)>1, \"\", C95))","v":""},{"$f":"IF(G95=\"\",\"\",CONCATENATE(DIGITADOR!$M$1,G95,E95))","v":""},"",{"$f":"IF(F95=\"\",\"\",INDEX(referentes!$S:$S,MATCH(F95,referentes!$W:$W,0)))","v":""},null,null,""]
[null,{"$f":"IF(C96=\"\",\"\",IF(COUNTIF($C$3:C96, C96)>1, \"\", C96))","v":""},{"$f":"IF(G96=\"\",\"\",CONCATENATE(DIGITADOR!$M$1,G96,E96))","v":""},"",{"$f":"IF(F96=\"\",\"\",INDEX(referentes!$S:$S,MATCH(F96,referentes!$W:$W,0)))","v":""},null,null,""]
[null,{"$f":"IF(C97=\"\",\"\",IF(COUNTIF($C$3:C97, C97)>1, \"\", C97))","v":""},{"$f":"IF(G97=\"\",\"\",CONCATENATE(DIGITADOR!$M$1,G97,E97))","v":""},"",{"$f":"IF(F97=\"\",\"\",INDEX(referentes!$S:$S,MATCH(F97,referentes!$W:$W,0)))","v":""},null,null,""]
[null,{"$f":"IF(C98=\"\",\"\",IF(COUNTIF($C$3:C98, C98)>1, \"\", C98))","v":""},{"$f":"IF(G98=\"\",\"\",CONCATENATE(DIGITADOR!$M$1,G98,E98))","v":""},"",{"$f":"IF(F98=\"\",\"\",INDEX(referentes!$S:$S,MATCH(F98,referentes!$W:$W,0)))","v":""},null,null,""]
[null,{"$f":"IF(C99=\"\",\"\",IF(COUNTIF($C$3:C99, C99)>1, \"\", C99))","v":""},{"$f":"IF(G99=\"\",\"\",CONCATENATE(DIGITADOR!$M$1,G99,E99))","v":""},"",{"$f":"IF(F99=\"\",\"\",INDEX(referentes!$S:$S,MATCH(F99,referentes!$W:$W,0)))","v":""},null,null,""]
[null,{"$f":"IF(C100=\"\",\"\",IF(COUNTIF($C$3:C100, C100)>1, \"\", C100))","v":""},{"$f":"IF(G100=\"\",\"\",CONCATENATE(DIGITADOR!$M$1,G100,E100))","v":""},"",{"$f":"IF(F100=\"\",\"\",INDEX(referentes!$S:$S,MATCH(F100,referentes!$W:$W,0)))","v":""},null,null,""]
[null,{"$f":"IF(C101=\"\",\"\",IF(COUNTIF($C$3:C101, C101)>1, \"\", C101))","v":""},{"$f":"IF(G101=\"\",\"\",CONCATENATE(DIGITADOR!$M$1,G101,E101))","v":""},"",{"$f":"IF(F101=\"\",\"\",INDEX(referentes!$S:$S,MATCH(F101,referentes!$W:$W,0)))","v":""},null,null,""]
[null,{"$f":"IF(C102=\"\",\"\",IF(COUNTIF($C$3:C102, C102)>1, \"\", C102))","v":""},{"$f":"IF(G102=\"\",\"\",CONCATENATE(DIGITADOR!$M$1,G102,E102))","v":""},"",{"$f":"IF(F102=\"\",\"\",INDEX(referentes!$S:$S,MATCH(F102,referentes!$W:$W,0)))","v":""},null,null,""]
[null,{"$f":"IF(C103=\"\",\"\",IF(COUNTIF($C$3:C103, C103)>1, \"\", C103))","v":""},{"$f":"IF(G103=\"\",\"\",CONCATENATE(DIGITADOR!$M$1,G103,E103))","v":""},"",{"$f":"IF(F103=\"\",\"\",INDEX(referentes!$S:$S,MATCH(F103,referentes!$W:$W,0)))","v":""},null,null,""]
[null,{"$f":"IF(C104=\"\",\"\",IF(COUNTIF($C$3:C104, C104)>1, \"\", C104))","v":""},{"$f":"IF(G104=\"\",\"\",CONCATENATE(DIGITADOR!$M$1,G104,E104))","v":""},"",{"$f":"IF(F104=\"\",\"\",INDEX(referentes!$S:$S,MATCH(F104,referentes!$W:$W,0)))","v":""},null,null,""]
[null,{"$f":"IF(C105=\"\",\"\",IF(COUNTIF($C$3:C105, C105)>1, \"\", C105))","v":""},{"$f":"IF(G105=\"\",\"\",CONCATENATE(DIGITADOR!$M$1,G105,E105))","v":""},"",{"$f":"IF(F105=\"\",\"\",INDEX(referentes!$S:$S,MATCH(F105,referentes!$W:$W,0)))","v":""},null,null,""]
[null,{"$f":"IF(C106=\"\",\"\",IF(COUNTIF($C$3:C106, C106)>1, \"\", C106))","v":""},{"$f":"IF(G106=\"\",\"\",CONCATENATE(DIGITADOR!$M$1,G106,E106))","v":""},"",{"$f":"IF(F106=\"\",\"\",INDEX(referentes!$S:$S,MATCH(F106,referentes!$W:$W,0)))","v":""},null,null,""]
[null,{"$f":"IF(C107=\"\",\"\",IF(COUNTIF($C$3:C107, C107)>1, \"\", C107))","v":""},{"$f":"IF(G107=\"\",\"\",CONCATENATE(DIGITADOR!$M$1,G107,E107))","v":""},"",{"$f":"IF(F107=\"\",\"\",INDEX(referentes!$S:$S,MATCH(F107,referentes!$W:$W,0)))","v":""},null,null,""]
[null,{"$f":"IF(C108=\"\",\"\",IF(COUNTIF($C$3:C108, C108)>1, \"\", C108))","v":""},{"$f":"IF(G108=\"\",\"\",CONCATENATE(DIGITADOR!$M$1,G108,E108))","v":""},"",{"$f":"IF(F108=\"\",\"\",INDEX(referentes!$S:$S,MATCH(F108,referentes!$W:$W,0)))","v":""},null,null,""]
[null,{"$f":"IF(C109=\"\",\"\",IF(COUNTIF($C$3:C109, C109)>1, \"\", C109))","v":""},{"$f":"IF(G109=\"\",\"\",CONCATENATE(DIGITADOR!$M$1,G109,E109))","v":""},"",{"$f":"IF(F109=\"\",\"\",INDEX(referentes!$S:$S,MATCH(F109,referentes!$W:$W,0)))","v":""},null,null,""]
[null,{"$f":"IF(C110=\"\",\"\",IF(COUNTIF($C$3:C110, C110)>1, \"\", C110))","v":""},{"$f":"IF(G110=\"\",\"\",CONCATENATE(DIGITADOR!$M$1,G110,E110))","v":""},"",{"$f":"IF(F110=\"\",\"\",INDEX(referentes!$S:$S,MATCH(F110,referentes!$W:$W,0)))","v":""},null,null,""]
[null,{"$f":"IF(C111=\"\",\"\",IF(COUNTIF($C$3:C111, C111)>1, \"\", C111))","v":""},{"$f":"IF(G111=\"\",\"\",CONCATENATE(DIGITADOR!$M$1,G111,E111))","v":""},"",{"$f":"IF(F111=\"\",\"\",INDEX(referentes!$S:$S,MATCH(F111,referentes!$W:$W,0)))","v":""},null,null,""]
[null,{"$f":"IF(C112=\"\",\"\",IF(COUNTIF($C$3:C112, C112)>1, \"\", C112))","v":""},{"$f":"IF(G112=\"\",\"\",CONCATENATE(DIGITADOR!$M$1,G112,E112))","v":""},"",{"$f":"IF(F112=\"\",\"\",INDEX(referentes!$S:$S,MATCH(F112,referentes!$W:$W,0)))","v":""},null,null,""]
[null,{"$f":"IF(C113=\"\",\"\",IF(COUNTIF($C$3:C113, C113)>1, \"\", C113))","v":""},{"$f":"IF(G113=\"\",\"\",CONCATENATE(DIGITADOR!$M$1,G113,E113))","v":""},"",{"$f":"IF(F113=\"\",\"\",INDEX(referentes!$S:$S,MATCH(F113,referentes!$W:$W,0)))","v":""},null,null,""]
[null,{"$f":"IF(C114=\"\",\"\",IF(COUNTIF($C$3:C114, C114)>1, \"\", C114))","v":""},{"$f":"IF(G114=\"\",\"\",CONCATENATE(DIGITADOR!$M$1,G114,E114))","v":""},"",{"$f":"IF(F114=\"\",\"\",INDEX(referentes!$S:$S,MATCH(F114,referentes!$W:$W,0)))","v":""},null,null,""]
[null,{"$f":"IF(C115=\"\",\"\",IF(COUNTIF($C$3:C115, C115)>1, \"\", C115))","v":""},{"$f":"IF(G115=\"\",\"\",CONCATENATE(DIGITADOR!$M$1,G115,E115))","v":""},"",{"$f":"IF(F115=\"\",\"\",INDEX(referentes!$S:$S,MATCH(F115,referentes!$W:$W,0)))","v":""},null,null,""]
[null,{"$f":"IF(C116=\"\",\"\",IF(COUNTIF($C$3:C116, C116)>1, \"\", C116))","v":""},{"$f":"IF(G116=\"\",\"\",CONCATENATE(DIGITADOR!$M$1,G116,E116))","v":""},"",{"$f":"IF(F116=\"\",\"\",INDEX(referentes!$S:$S,MATCH(F116,referentes!$W:$W,0)))","v":""},null,null,""]
[null,{"$f":"IF(C117=\"\",\"\",IF(COUNTIF($C$3:C117, C117)>1, \"\", C117))","v":""},{"$f":"IF(G117=\"\",\"\",CONCATENATE(DIGITADOR!$M$1,G117,E117))","v":""},"",{"$f":"IF(F117=\"\",\"\",INDEX(referentes!$S:$S,MATCH(F117,referentes!$W:$W,0)))","v":""},null,null,""]
[null,{"$f":"IF(C118=\"\",\"\",IF(COUNTIF($C$3:C118, C118)>1, \"\", C118))","v":""},{"$f":"IF(G118=\"\",\"\",CONCATENATE(DIGITADOR!$M$1,G118,E118))","v":""},"",{"$f":"IF(F118=\"\",\"\",INDEX(referentes!$S:$S,MATCH(F118,referentes!$W:$W,0)))","v":""},null,null,""]
[null,{"$f":"IF(C119=\"\",\"\",IF(COUNTIF($C$3:C119, C119)>1, \"\", C119))","v":""},{"$f":"IF(G119=\"\",\"\",CONCATENATE(DIGITADOR!$M$1,G119,E119))","v":""},"",{"$f":"IF(F119=\"\",\"\",INDEX(referentes!$S:$S,MATCH(F119,referentes!$W:$W,0)))","v":""},null,null,""]
[null,{"$f":"IF(C120=\"\",\"\",IF(COUNTIF($C$3:C120, C120)>1, \"\", C120))","v":""},{"$f":"IF(G120=\"\",\"\",CONCATENATE(DIGITADOR!$M$1,G120,E120))","v":""},"",{"$f":"IF(F120=\"\",\"\",INDEX(referentes!$S:$S,MATCH(F120,referentes!$W:$W,0)))","v":""},null,null,""]
[null,{"$f":"IF(C121=\"\",\"\",IF(COUNTIF($C$3:C121, C121)>1, \"\", C121))","v":""},{"$f":"IF(G121=\"\",\"\",CONCATENATE(DIGITADOR!$M$1,G121,E121))","v":""},"",{"$f":"IF(F121=\"\",\"\",INDEX(referentes!$S:$S,MATCH(F121,referentes!$W:$W,0)))","v":""},null,null,""]
[null,{"$f":"IF(C122=\"\",\"\",IF(COUNTIF($C$3:C122, C122)>1, \"\", C122))","v":""},{"$f":"IF(G122=\"\",\"\",CONCATENATE(DIGITADOR!$M$1,G122,E122))","v":""},"",{"$f":"IF(F122=\"\",\"\",INDEX(referentes!$S:$S,MATCH(F122,referentes!$W:$W,0)))","v":""},null,null,""]
[null,{"$f":"IF(C123=\"\",\"\",IF(COUNTIF($C$3:C123, C123)>1, \"\", C123))","v":""},{"$f":"IF(G123=\"\",\"\",CONCATENATE(DIGITADOR!$M$1,G123,E123))","v":""},"",{"$f":"IF(F123=\"\",\"\",INDEX(referentes!$S:$S,MATCH(F123,referentes!$W:$W,0)))","v":""},null,null,""]
[null,{"$f":"IF(C124=\"\",\"\",IF(COUNTIF($C$3:C124, C124)>1, \"\", C124))","v":""},{"$f":"IF(G124=\"\",\"\",CONCATENATE(DIGITADOR!$M$1,G124,E124))","v":""},"",{"$f":"IF(F124=\"\",\"\",INDEX(referentes!$S:$S,MATCH(F124,referentes!$W:$W,0)))","v":""},null,null,""]
[null,{"$f":"IF(C125=\"\",\"\",IF(COUNTIF($C$3:C125, C125)>1, \"\", C125))","v":""},{"$f":"IF(G125=\"\",\"\",CONCATENATE(DIGITADOR!$M$1,G125,E125))","v":""},"",{"$f":"IF(F125=\"\",\"\",INDEX(referentes!$S:$S,MATCH(F125,referentes!$W:$W,0)))","v":""},null,null,""]
[null,{"$f":"IF(C126=\"\",\"\",IF(COUNTIF($C$3:C126, C126)>1, \"\", C126))","v":""},{"$f":"IF(G126=\"\",\"\",CONCATENATE(DIGITADOR!$M$1,G126,E126))","v":""},"",{"$f":"IF(F126=\"\",\"\",INDEX(referentes!$S:$S,MATCH(F126,referentes!$W:$W,0)))","v":""},null,null,""]
[null,{"$f":"IF(C127=\"\",\"\",IF(COUNTIF($C$3:C127, C127)>1, \"\", C127))","v":""},{"$f":"IF(G127=\"\",\"\",CONCATENATE(DIGITADOR!$M$1,G127,E127))","v":""},"",{"$f":"IF(F127=\"\",\"\",INDEX(referentes!$S:$S,MATCH(F127,referentes!$W:$W,0)))","v":""},null,null,""]
[null,{"$f":"IF(C128=\"\",\"\",IF(COUNTIF($C$3:C128, C128)>1, \"\", C128))","v":""},{"$f":"IF(G128=\"\",\"\",CONCATENATE(DIGITADOR!$M$1,G128,E128))","v":""},"",{"$f":"IF(F128=\"\",\"\",INDEX(referentes!$S:$S,MATCH(F128,referentes!$W:$W,0)))","v":""},null,null,""]
[null,{"$f":"IF(C129=\"\",\"\",IF(COUNTIF($C$3:C129, C129)>1, \"\", C129))","v":""},{"$f":"IF(G129=\"\",\"\",CONCATENATE(DIGITADOR!$M$1,G129,E129))","v":""},"",{"$f":"IF(F129=\"\",\"\",INDEX(referentes!$S:$S,MATCH(F129,referentes!$W:$W,0)))","v":""},null,null,""]
[null,{"$f":"IF(C130=\"\",\"\",IF(COUNTIF($C$3:C130, C130)>1, \"\", C130))","v":""},{"$f":"IF(G130=\"\",\"\",CONCATENATE(DIGITADOR!$M$1,G130,E130))","v":""},"",{"$f":"IF(F130=\"\",\"\",INDEX(referentes!$S:$S,MATCH(F130,referentes!$W:$W,0)))","v":""},null,null,""]
[null,{"$f":"IF(C131=\"\",\"\",IF(COUNTIF($C$3:C131, C131)>1, \"\", C131))","v":""},{"$f":"IF(G131=\"\",\"\",CONCATENATE(DIGITADOR!$M$1,G131,E131))","v":""},"",{"$f":"IF(F131=\"\",\"\",INDEX(referentes!$S:$S,MATCH(F131,referentes!$W:$W,0)))","v":""},null,null,""]
[null,{"$f":"IF(C132=\"\",\"\",IF(COUNTIF($C$3:C132, C132)>1, \"\", C132))","v":""},{"$f":"IF(G132=\"\",\"\",CONCATENATE(DIGITADOR!$M$1,G132,E132))","v":""},{"$f":"IF(C132=\"\",\"\",CONCATENATE(C132,ROW()-2))","v":""},{"$f":"IF(F132=\"\",\"\",INDEX(referentes!$S:$S,MATCH(F132,referentes!$W:$W,0)))","v":""},null,null,{"$f":"IF(I132=\"\",\"\",TEXT(I132,\"hh:mm\"))","v":""}]
[null,{"$f":"IF(C133=\"\",\"\",IF(COUNTIF($C$3:C133, C133)>1, \"\", C133))","v":""},{"$f":"IF(G133=\"\",\"\",CONCATENATE(DIGITADOR!$M$1,G133,E133))","v":""},"",{"$f":"IF(F133=\"\",\"\",INDEX(referentes!$S:$S,MATCH(F133,referentes!$W:$W,0)))","v":""},null,null,""]
[null,{"$f":"IF(C134=\"\",\"\",IF(COUNTIF($C$3:C134, C134)>1, \"\", C134))","v":""},{"$f":"IF(G134=\"\",\"\",CONCATENATE(DIGITADOR!$M$1,G134,E134))","v":""},"",{"$f":"IF(F134=\"\",\"\",INDEX(referentes!$S:$S,MATCH(F134,referentes!$W:$W,0)))","v":""},null,null,""]
[null,{"$f":"IF(C135=\"\",\"\",IF(COUNTIF($C$3:C135, C135)>1, \"\", C135))","v":""},{"$f":"IF(G135=\"\",\"\",CONCATENATE(DIGITADOR!$M$1,G135,E135))","v":""},"",{"$f":"IF(F135=\"\",\"\",INDEX(referentes!$S:$S,MATCH(F135,referentes!$W:$W,0)))","v":""},null,null,""]
[null,{"$f":"IF(C136=\"\",\"\",IF(COUNTIF($C$3:C136, C136)>1, \"\", C136))","v":""},{"$f":"IF(G136=\"\",\"\",CONCATENATE(DIGITADOR!$M$1,G136,E136))","v":""},"",{"$f":"IF(F136=\"\",\"\",INDEX(referentes!$S:$S,MATCH(F136,referentes!$W:$W,0)))","v":""},null,null,""]
[null,{"$f":"IF(C137=\"\",\"\",IF(COUNTIF($C$3:C137, C137)>1, \"\", C137))","v":""},{"$f":"IF(G137=\"\",\"\",CONCATENATE(DIGITADOR!$M$1,G137,E137))","v":""},"",{"$f":"IF(F137=\"\",\"\",INDEX(referentes!$S:$S,MATCH(F137,referentes!$W:$W,0)))","v":""},null,null,""]
[null,{"$f":"IF(C138=\"\",\"\",IF(COUNTIF($C$3:C138, C138)>1, \"\", C138))","v":""},{"$f":"IF(G138=\"\",\"\",CONCATENATE(DIGITADOR!$M$1,G138,E138))","v":""},"",{"$f":"IF(F138=\"\",\"\",INDEX(referentes!$S:$S,MATCH(F138,referentes!$W:$W,0)))","v":""},null,null,""]
[null,{"$f":"IF(C139=\"\",\"\",IF(COUNTIF($C$3:C139, C139)>1, \"\", C139))","v":""},{"$f":"IF(G139=\"\",\"\",CONCATENATE(DIGITADOR!$M$1,G139,E139))","v":""},"",{"$f":"IF(F139=\"\",\"\",INDEX(referentes!$S:$S,MATCH(F139,referentes!$W:$W,0)))","v":""},null,null,""]
[null,{"$f":"IF(C140=\"\",\"\",IF(COUNTIF($C$3:C140, C140)>1, \"\", C140))","v":""},{"$f":"IF(G140=\"\",\"\",CONCATENATE(DIGITADOR!$M$1,G140,E140))","v":""},"",{"$f":"IF(F140=\"\",\"\",INDEX(referentes!$S:$S,MATCH(F140,referentes!$W:$W,0)))","v":""},null,null,""]
[null,{"$f":"IF(C141=\"\",\"\",IF(COUNTIF($C$3:C141, C141)>1, \"\", C141))","v":""},{"$f":"IF(G141=\"\",\"\",CONCATENATE(DIGITADOR!$M$1,G141,E141))","v":""},"",{"$f":"IF(F141=\"\",\"\",INDEX(referentes!$S:$S,MATCH(F141,referentes!$W:$W,0)))","v":""},null,null,""]
[null,{"$f":"IF(C142=\"\",\"\",IF(COUNTIF($C$3:C142, C142)>1, \"\", C142))","v":""},{"$f":"IF(G142=\"\",\"\",CONCATENATE(DIGITADOR!$M$1,G142,E142))","v":""},"",{"$f":"IF(F142=\"\",\"\",INDEX(referentes!$S:$S,MATCH(F142,referentes!$W:$W,0)))","v":""},null,null,""]
[null,{"$f":"IF(C143=\"\",\"\",IF(COUNTIF($C$3:C143, C143)>1, \"\", C143))","v":""},{"$f":"IF(G143=\"\",\"\",CONCATENATE(DIGITADOR!$M$1,G143,E143))","v":""},"",{"$f":"IF(F143=\"\",\"\",INDEX(referentes!$S:$S,MATCH(F143,referentes!$W:$W,0)))","v":""},null,null,""]
[null,{"$f":"IF(C144=\"\",\"\",IF(COUNTIF($C$3:C144, C144)>1, \"\", C144))","v":""},{"$f":"IF(G144=\"\",\"\",CONCATENATE(DIGITADOR!$M$1,G144,E144))","v":""},"",{"$f":"IF(F144=\"\",\"\",INDEX(referentes!$S:$S,MATCH(F144,referentes!$W:$W,0)))","v":""},null,null,""]
[null,{"$f":"IF(C145=\"\",\"\",IF(COUNTIF($C$3:C145, C145)>1, \"\", C145))","v":""},{"$f":"IF(G145=\"\",\"\",CONCATENATE(DIGITADOR!$M$1,G145,E145))","v":""},"",{"$f":"IF(F145=\"\",\"\",INDEX(referentes!$S:$S,MATCH(F145,referentes!$W:$W,0)))","v":""},null,null,""]
[null,{"$f":"IF(C146=\"\",\"\",IF(COUNTIF($C$3:C146, C146)>1, \"\", C146))","v":""},{"$f":"IF(G146=\"\",\"\",CONCATENATE(DIGITADOR!$M$1,G146,E146))","v":""},"",{"$f":"IF(F146=\"\",\"\",INDEX(referentes!$S:$S,MATCH(F146,referentes!$W:$W,0)))","v":""},null,null,""]
[null,{"$f":"IF(C147=\"\",\"\",IF(COUNTIF($C$3:C147, C147)>1, \"\", C147))","v":""},{"$f":"IF(G147=\"\",\"\",CONCATENATE(DIGITADOR!$M$1,G147,E147))","v":""},"",{"$f":"IF(F147=\"\",\"\",INDEX(referentes!$S:$S,MATCH(F147,referentes!$W:$W,0)))","v":""},null,null,""]
[null,{"$f":"IF(C148=\"\",\"\",IF(COUNTIF($C$3:C148, C148)>1, \"\", C148))","v":""},{"$f":"IF(G148=\"\",\"\",CONCATENATE(DIGITADOR!$M$1,G148,E148))","v":""},"",{"$f":"IF(F148=\"\",\"\",INDEX(referentes!$S:$S,MATCH(F148,referentes!$W:$W,0)))","v":""},null,null,""]
[null,{"$f":"IF(C149=\"\",\"\",IF(COUNTIF($C$3:C149, C149)>1, \"\", C149))","v":""},{"$f":"IF(G149=\"\",\"\",CONCATENATE(DIGITADOR!$M$1,G149,E149))","v":""},"",{"$f":"IF(F149=\"\",\"\",INDEX(referentes!$S:$S,MATCH(F149,referentes!$W:$W,0)))","v":""},null,null,""]
[null,{"$f":"IF(C150=\"\",\"\",IF(COUNTIF($C$3:C150, C150)>1, \"\", C150))","v":""},{"$f":"IF(G150=\"\",\"\",CONCATENATE(DIGITADOR!$M$1,G150,E150))","v":""},"",{"$f":"IF(F150=\"\",\"\",INDEX(referentes!$S:$S,MATCH(F150,referentes!$W:$W,0)))","v":""},null,null,""]
[null,{"$f":"IF(C151=\"\",\"\",IF(COUNTIF($C$3:C151, C151)>1, \"\", C151))","v":""},{"$f":"IF(G151=\"\",\"\",CONCATENATE(DIGITADOR!$M$1,G151,E151))","v":""},"",{"$f":"IF(F151=\"\",\"\",INDEX(referentes!$S:$S,MATCH(F151,referentes!$W:$W,0)))","v":""},null,null,""]
[null,{"$f":"IF(C152=\"\",\"\",IF(COUNTIF($C$3:C152, C152)>1, \"\", C152))","v":""},{"$f":"IF(G152=\"\",\"\",CONCATENATE(DIGITADOR!$M$1,G152,E152))","v":""},"",{"$f":"IF(F152=\"\",\"\",INDEX(referentes!$S:$S,MATCH(F152,referentes!$W:$W,0)))","v":""},null,null,""]
[null,{"$f":"IF(C153=\"\",\"\",IF(COUNTIF($C$3:C153, C153)>1, \"\", C153))","v":""},{"$f":"IF(G153=\"\",\"\",CONCATENATE(DIGITADOR!$M$1,G153,E153))","v":""},"",{"$f":"IF(F153=\"\",\"\",INDEX(referentes!$S:$S,MATCH(F153,referentes!$W:$W,0)))","v":""},null,null,""]
[null,{"$f":"IF(C154=\"\",\"\",IF(COUNTIF($C$3:C154, C154)>1, \"\", C154))","v":""},{"$f":"IF(G154=\"\",\"\",CONCATENATE(DIGITADOR!$M$1,G154,E154))","v":""},"",{"$f":"IF(F154=\"\",\"\",INDEX(referentes!$S:$S,MATCH(F154,referentes!$W:$W,0)))","v":""},null,null,""]
[null,{"$f":"IF(C155=\"\",\"\",IF(COUNTIF($C$3:C155, C155)>1, \"\", C155))","v":""},{"$f":"IF(G155=\"\",\"\",CONCATENATE(DIGITADOR!$M$1,G155,E155))","v":""},"",{"$f":"IF(F155=\"\",\"\",INDEX(referentes!$S:$S,MATCH(F155,referentes!$W:$W,0)))","v":""},null,null,""]
[null,{"$f":"IF(C156=\"\",\"\",IF(COUNTIF($C$3:C156, C156)>1, \"\", C156))","v":""},{"$f":"IF(G156=\"\",\"\",CONCATENATE(DIGITADOR!$M$1,G156,E156))","v":""},"",{"$f":"IF(F156=\"\",\"\",INDEX(referentes!$S:$S,MATCH(F156,referentes!$W:$W,0)))","v":""},null,null,""]
[null,{"$f":"IF(C157=\"\",\"\",IF(COUNTIF($C$3:C157, C157)>1, \"\", C157))","v":""},{"$f":"IF(G157=\"\",\"\",CONCATENATE(DIGITADOR!$M$1,G157,E157))","v":""},"",{"$f":"IF(F157=\"\",\"\",INDEX(referentes!$S:$S,MATCH(F157,referentes!$W:$W,0)))","v":""},null,null,""]
[null,{"$f":"IF(C158=\"\",\"\",IF(COUNTIF($C$3:C158, C158)>1, \"\", C158))","v":""},{"$f":"IF(G158=\"\",\"\",CONCATENATE(DIGITADOR!$M$1,G158,E158))","v":""},"",{"$f":"IF(F158=\"\",\"\",INDEX(referentes!$S:$S,MATCH(F158,referentes!$W:$W,0)))","v":""},null,null,""]
[null,{"$f":"IF(C159=\"\",\"\",IF(COUNTIF($C$3:C159, C159)>1, \"\", C159))","v":""},{"$f":"IF(G159=\"\",\"\",CONCATENATE(DIGITADOR!$M$1,G159,E159))","v":""},"",{"$f":"IF(F159=\"\",\"\",INDEX(referentes!$S:$S,MATCH(F159,referentes!$W:$W,0)))","v":""},null,null,""]
[null,{"$f":"IF(C160=\"\",\"\",IF(COUNTIF($C$3:C160, C160)>1, \"\", C160))","v":""},{"$f":"IF(G160=\"\",\"\",CONCATENATE(DIGITADOR!$M$1,G160,E160))","v":""},"",{"$f":"IF(F160=\"\",\"\",INDEX(referentes!$S:$S,MATCH(F160,referentes!$W:$W,0)))","v":""},null,null,""]
[null,{"$f":"IF(C161=\"\",\"\",IF(COUNTIF($C$3:C161, C161)>1, \"\", C161))","v":""},{"$f":"IF(G161=\"\",\"\",CONCATENATE(DIGITADOR!$M$1,G161,E161))","v":""},"",{"$f":"IF(F161=\"\",\"\",INDEX(referentes!$S:$S,MATCH(F161,referentes!$W:$W,0)))","v":""},null,null,""]
[null,{"$f":"IF(C162=\"\",\"\",IF(COUNTIF($C$3:C162, C162)>1, \"\", C162))","v":""},{"$f":"IF(G162=\"\",\"\",CONCATENATE(DIGITADOR!$M$1,G162,E162))","v":""},"",{"$f":"IF(F162=\"\",\"\",INDEX(referentes!$S:$S,MATCH(F162,referentes!$W:$W,0)))","v":""},null,null,""]
[null,{"$f":"IF(C163=\"\",\"\",IF(COUNTIF($C$3:C163, C163)>1, \"\", C163))","v":""},{"$f":"IF(G163=\"\",\"\",CONCATENATE(DIGITADOR!$M$1,G163,E163))","v":""},"",{"$f":"IF(F163=\"\",\"\",INDEX(referentes!$S:$S,MATCH(F163,referentes!$W:$W,0)))","v":""},null,null,""]
[null,{"$f":"IF(C164=\"\",\"\",IF(COUNTIF($C$3:C164, C164)>1, \"\", C164))","v":""},{"$f":"IF(G164=\"\",\"\",CONCATENATE(DIGITADOR!$M$1,G164,E164))","v":""},"",{"$f":"IF(F164=\"\",\"\",INDEX(referentes!$S:$S,MATCH(F164,referentes!$W:$W,0)))","v":""},null,null,""]
[null,{"$f":"IF(C165=\"\",\"\",IF(COUNTIF($C$3:C165, C165)>1, \"\", C165))","v":""},{"$f":"IF(G165=\"\",\"\",CONCATENATE(DIGITADOR!$M$1,G165,E165))","v":""},"",{"$f":"IF(F165=\"\",\"\",INDEX(referentes!$S:$S,MATCH(F165,referentes!$W:$W,0)))","v":""},null,null,""]
[null,{"$f":"IF(C166=\"\",\"\",IF(COUNTIF($C$3:C166, C166)>1, \"\", C166))","v":""},{"$f":"IF(G166=\"\",\"\",CONCATENATE(DIGITADOR!$M$1,G166,E166))","v":""},"",{"$f":"IF(F166=\"\",\"\",INDEX(referentes!$S:$S,MATCH(F166,referentes!$W:$W,0)))","v":""},null,null,""]
[null,{"$f":"IF(C167=\"\",\"\",IF(COUNTIF($C$3:C167, C167)>1, \"\", C167))","v":""},{"$f":"IF(G167=\"\",\"\",CONCATENATE(DIGITADOR!$M$1,G167,E167))","v":""},"",{"$f":"IF(F167=\"\",\"\",INDEX(referentes!$S:$S,MATCH(F167,referentes!$W:$W,0)))","v":""},null,null,""]
[null,{"$f":"IF(C168=\"\",\"\",IF(COUNTIF($C$3:C168, C168)>1, \"\", C168))","v":""},{"$f":"IF(G168=\"\",\"\",CONCATENATE(DIGITADOR!$M$1,G168,E168))","v":""},"",{"$f":"IF(F168=\"\",\"\",INDEX(referentes!$S:$S,MATCH(F168,referentes!$W:$W,0)))","v":""},null,null,""]
[null,{"$f":"IF(C169=\"\",\"\",IF(COUNTIF($C$3:C169, C169)>1, \"\", C169))","v":""},{"$f":"IF(G169=\"\",\"\",CONCATENATE(DIGITADOR!$M$1,G169,E169))","v":""},"",{"$f":"IF(F169=\"\",\"\",INDEX(referentes!$S:$S,MATCH(F169,referentes!$W:$W,0)))","v":""},null,null,""]
[null,{"$f":"IF(C170=\"\",\"\",IF(COUNTIF($C$3:C170, C170)>1, \"\", C170))","v":""},{"$f":"IF(G170=\"\",\"\",CONCATENATE(DIGITADOR!$M$1,G170,E170))","v":""},"",{"$f":"IF(F170=\"\",\"\",INDEX(referentes!$S:$S,MATCH(F170,referentes!$W:$W,0)))","v":""},null,null,""]
[null,{"$f":"IF(C171=\"\",\"\",IF(COUNTIF($C$3:C171, C171)>1, \"\", C171))","v":""},{"$f":"IF(G171=\"\",\"\",CONCATENATE(DIGITADOR!$M$1,G171,E171))","v":""},"",{"$f":"IF(F171=\"\",\"\",INDEX(referentes!$S:$S,MATCH(F171,referentes!$W:$W,0)))","v":""},null,null,""]
[null,{"$f":"IF(C172=\"\",\"\",IF(COUNTIF($C$3:C172, C172)>1, \"\", C172))","v":""},{"$f":"IF(G172=\"\",\"\",CONCATENATE(DIGITADOR!$M$1,G172,E172))","v":""},"",{"$f":"IF(F172=\"\",\"\",INDEX(referentes!$S:$S,MATCH(F172,referentes!$W:$W,0)))","v":""},null,null,""]
[null,{"$f":"IF(C173=\"\",\"\",IF(COUNTIF($C$3:C173, C173)>1, \"\", C173))","v":""},{"$f":"IF(G173=\"\",\"\",CONCATENATE(DIGITADOR!$M$1,G173,E173))","v":""},"",{"$f":"IF(F173=\"\",\"\",INDEX(referentes!$S:$S,MATCH(F173,referentes!$W:$W,0)))","v":""},null,null,""]
[null,{"$f":"IF(C174=\"\",\"\",IF(COUNTIF($C$3:C174, C174)>1, \"\", C174))","v":""},{"$f":"IF(G174=\"\",\"\",CONCATENATE(DIGITADOR!$M$1,G174,E174))","v":""},"",{"$f":"IF(F174=\"\",\"\",INDEX(referentes!$S:$S,MATCH(F174,referentes!$W:$W,0)))","v":""},null,null,""]
[null,{"$f":"IF(C175=\"\",\"\",IF(COUNTIF($C$3:C175, C175)>1, \"\", C175))","v":""},{"$f":"IF(G175=\"\",\"\",CONCATENATE(DIGITADOR!$M$1,G175,E175))","v":""},"",{"$f":"IF(F175=\"\",\"\",INDEX(referentes!$S:$S,MATCH(F175,referentes!$W:$W,0)))","v":""},null,null,""]
[null,{"$f":"IF(C176=\"\",\"\",IF(COUNTIF($C$3:C176, C176)>1, \"\", C176))","v":""},{"$f":"IF(G176=\"\",\"\",CONCATENATE(DIGITADOR!$M$1,G176,E176))","v":""},"",{"$f":"IF(F176=\"\",\"\",INDEX(referentes!$S:$S,MATCH(F176,referentes!$W:$W,0)))","v":""},null,null,""]
[null,{"$f":"IF(C177=\"\",\"\",IF(COUNTIF($C$3:C177, C177)>1, \"\", C177))","v":""},{"$f":"IF(G177=\"\",\"\",CONCATENATE(DIGITADOR!$M$1,G177,E177))","v":""},"",{"$f":"IF(F177=\"\",\"\",INDEX(referentes!$S:$S,MATCH(F177,referentes!$W:$W,0)))","v":""},null,null,""]
[null,{"$f":"IF(C178=\"\",\"\",IF(COUNTIF($C$3:C178, C178)>1, \"\", C178))","v":""},{"$f":"IF(G178=\"\",\"\",CONCATENATE(DIGITADOR!$M$1,G178,E178))","v":""},"",{"$f":"IF(F178=\"\",\"\",INDEX(referentes!$S:$S,MATCH(F178,referentes!$W:$W,0)))","v":""},null,null,""]
[null,{"$f":"IF(C179=\"\",\"\",IF(COUNTIF($C$3:C179, C179)>1, \"\", C179))","v":""},{"$f":"IF(G179=\"\",\"\",CONCATENATE(DIGITADOR!$M$1,G179,E179))","v":""},"",{"$f":"IF(F179=\"\",\"\",INDEX(referentes!$S:$S,MATCH(F179,referentes!$W:$W,0)))","v":""},null,null,""]
[null,{"$f":"IF(C180=\"\",\"\",IF(COUNTIF($C$3:C180, C180)>1, \"\", C180))","v":""},{"$f":"IF(G180=\"\",\"\",CONCATENATE(DIGITADOR!$M$1,G180,E180))","v":""},"",{"$f":"IF(F180=\"\",\"\",INDEX(referentes!$S:$S,MATCH(F180,referentes!$W:$W,0)))","v":""},null,null,""]
[null,{"$f":"IF(C181=\"\",\"\",IF(COUNTIF($C$3:C181, C181)>1, \"\", C181))","v":""},{"$f":"IF(G181=\"\",\"\",CONCATENATE(DIGITADOR!$M$1,G181,E181))","v":""},"",{"$f":"IF(F181=\"\",\"\",INDEX(referentes!$S:$S,MATCH(F181,referentes!$W:$W,0)))","v":""},null,null,""]
[null,{"$f":"IF(C182=\"\",\"\",IF(COUNTIF($C$3:C182, C182)>1, \"\", C182))","v":""},{"$f":"IF(G182=\"\",\"\",CONCATENATE(DIGITADOR!$M$1,G182,E182))","v":""},"",{"$f":"IF(F182=\"\",\"\",INDEX(referentes!$S:$S,MATCH(F182,referentes!$W:$W,0)))","v":""},null,null,""]
[null,{"$f":"IF(C183=\"\",\"\",IF(COUNTIF($C$3:C183, C183)>1, \"\", C183))","v":""},{"$f":"IF(G183=\"\",\"\",CONCATENATE(DIGITADOR!$M$1,G183,E183))","v":""},"",{"$f":"IF(F183=\"\",\"\",INDEX(referentes!$S:$S,MATCH(F183,referentes!$W:$W,0)))","v":""},null,null,""]
[null,{"$f":"IF(C184=\"\",\"\",IF(COUNTIF($C$3:C184, C184)>1, \"\", C184))","v":""},{"$f":"IF(G184=\"\",\"\",CONCATENATE(DIGITADOR!$M$1,G184,E184))","v":""},"",{"$f":"IF(F184=\"\",\"\",INDEX(referentes!$S:$S,MATCH(F184,referentes!$W:$W,0)))","v":""},null,null,""]
[null,{"$f":"IF(C185=\"\",\"\",IF(COUNTIF($C$3:C185, C185)>1, \"\", C185))","v":""},{"$f":"IF(G185=\"\",\"\",CONCATENATE(DIGITADOR!$M$1,G185,E185))","v":""},"",{"$f":"IF(F185=\"\",\"\",INDEX(referentes!$S:$S,MATCH(F185,referentes!$W:$W,0)))","v":""},null,null,""]
[null,{"$f":"IF(C186=\"\",\"\",IF(COUNTIF($C$3:C186, C186)>1, \"\", C186))","v":""},{"$f":"IF(G186=\"\",\"\",CONCATENATE(DIGITADOR!$M$1,G186,E186))","v":""},"",{"$f":"IF(F186=\"\",\"\",INDEX(referentes!$S:$S,MATCH(F186,referentes!$W:$W,0)))","v":""},null,null,""]
[null,{"$f":"IF(C187=\"\",\"\",IF(COUNTIF($C$3:C187, C187)>1, \"\", C187))","v":""},{"$f":"IF(G187=\"\",\"\",CONCATENATE(DIGITADOR!$M$1,G187,E187))","v":""},"",{"$f":"IF(F187=\"\",\"\",INDEX(referentes!$S:$S,MATCH(F187,referentes!$W:$W,0)))","v":""},null,null,""]
[null,{"$f":"IF(C188=\"\",\"\",IF(COUNTIF($C$3:C188, C188)>1, \"\", C188))","v":""},{"$f":"IF(G188=\"\",\"\",CONCATENATE(DIGITADOR!$M$1,G188,E188))","v":""},"",{"$f":"IF(F188=\"\",\"\",INDEX(referentes!$S:$S,MATCH(F188,referentes!$W:$W,0)))","v":""},null,null,""]
[null,{"$f":"IF(C189=\"\",\"\",IF(COUNTIF($C$3:C189, C189)>1, \"\", C189))","v":""},{"$f":"IF(G189=\"\",\"\",CONCATENATE(DIGITADOR!$M$1,G189,E189))","v":""},"",{"$f":"IF(F189=\"\",\"\",INDEX(referentes!$S:$S,MATCH(F189,referentes!$W:$W,0)))","v":""},null,null,""]
[null,{"$f":"IF(C190=\"\",\"\",IF(COUNTIF($C$3:C190, C190)>1, \"\", C190))","v":""},{"$f":"IF(G190=\"\",\"\",CONCATENATE(DIGITADOR!$M$1,G190,E190))","v":""},"",{"$f":"IF(F190=\"\",\"\",INDEX(referentes!$S:$S,MATCH(F190,referentes!$W:$W,0)))","v":""},null,null,""]
[null,{"$f":"IF(C191=\"\",\"\",IF(COUNTIF($C$3:C191, C191)>1, \"\", C191))","v":""},{"$f":"IF(G191=\"\",\"\",CONCATENATE(DIGITADOR!$M$1,G191,E191))","v":""},"",{"$f":"IF(F191=\"\",\"\",INDEX(referentes!$S:$S,MATCH(F191,referentes!$W:$W,0)))","v":""},null,null,""]
[null,{"$f":"IF(C192=\"\",\"\",IF(COUNTIF($C$3:C192, C192)>1, \"\", C192))","v":""},{"$f":"IF(G192=\"\",\"\",CONCATENATE(DIGITADOR!$M$1,G192,E192))","v":""},"",{"$f":"IF(F192=\"\",\"\",INDEX(referentes!$S:$S,MATCH(F192,referentes!$W:$W,0)))","v":""},null,null,""]
[null,{"$f":"IF(C193=\"\",\"\",IF(COUNTIF($C$3:C193, C193)>1, \"\", C193))","v":""},{"$f":"IF(G193=\"\",\"\",CONCATENATE(DIGITADOR!$M$1,G193,E193))","v":""},"",{"$f":"IF(F193=\"\",\"\",INDEX(referentes!$S:$S,MATCH(F193,referentes!$W:$W,0)))","v":""},null,null,""]
[null,{"$f":"IF(C194=\"\",\"\",IF(COUNTIF($C$3:C194, C194)>1, \"\", C194))","v":""},{"$f":"IF(G194=\"\",\"\",CONCATENATE(DIGITADOR!$M$1,G194,E194))","v":""},"",{"$f":"IF(F194=\"\",\"\",INDEX(referentes!$S:$S,MATCH(F194,referentes!$W:$W,0)))","v":""},null,null,""]
[null,{"$f":"IF(C195=\"\",\"\",IF(COUNTIF($C$3:C195, C195)>1, \"\", C195))","v":""},{"$f":"IF(G195=\"\",\"\",CONCATENATE(DIGITADOR!$M$1,G195,E195))","v":""},"",{"$f":"IF(F195=\"\",\"\",INDEX(referentes!$S:$S,MATCH(F195,referentes!$W:$W,0)))","v":""},null,null,""]
[null,{"$f":"IF(C196=\"\",\"\",IF(COUNTIF($C$3:C196, C196)>1, \"\", C196))","v":""},{"$f":"IF(G196=\"\",\"\",CONCATENATE(DIGITADOR!$M$1,G196,E196))","v":""},{"$f":"IF(C196=\"\",\"\",CONCATENATE(C196,ROW()-2))","v":""},{"$f":"IF(F196=\"\",\"\",INDEX(referentes!$S:$S,MATCH(F196,referentes!$W:$W,0)))","v":""},null,null,{"$f":"IF(I196=\"\",\"\",TEXT(I196,\"hh:mm\"))","v":""}]
[null,{"$f":"IF(C197=\"\",\"\",IF(COUNTIF($C$3:C197, C197)>1, \"\", C197))","v":""},{"$f":"IF(G197=\"\",\"\",CONCATENATE(DIGITADOR!$M$1,G197,E197))","v":""},"",{"$f":"IF(F197=\"\",\"\",INDEX(referentes!$S:$S,MATCH(F197,referentes!$W:$W,0)))","v":""},null,null,""]
[null,{"$f":"IF(C198=\"\",\"\",IF(COUNTIF($C$3:C198, C198)>1, \"\", C198))","v":""},{"$f":"IF(G198=\"\",\"\",CONCATENATE(DIGITADOR!$M$1,G198,E198))","v":""},"",{"$f":"IF(F198=\"\",\"\",INDEX(referentes!$S:$S,MATCH(F198,referentes!$W:$W,0)))","v":""},null,null,""]
[null,{"$f":"IF(C199=\"\",\"\",IF(COUNTIF($C$3:C199, C199)>1, \"\", C199))","v":""},{"$f":"IF(G199=\"\",\"\",CONCATENATE(DIGITADOR!$M$1,G199,E199))","v":""},"",{"$f":"IF(F199=\"\",\"\",INDEX(referentes!$S:$S,MATCH(F199,referentes!$W:$W,0)))","v":""},null,null,""]
[null,{"$f":"IF(C200=\"\",\"\",IF(COUNTIF($C$3:C200, C200)>1, \"\", C200))","v":""},{"$f":"IF(G200=\"\",\"\",CONCATENATE(DIGITADOR!$M$1,G200,E200))","v":""},"",{"$f":"IF(F200=\"\",\"\",INDEX(referentes!$S:$S,MATCH(F200,referentes!$W:$W,0)))","v":""},null,null,""]
[null,{"$f":"IF(C201=\"\",\"\",IF(COUNTIF($C$3:C201, C201)>1, \"\", C201))","v":""},{"$f":"IF(G201=\"\",\"\",CONCATENATE(DIGITADOR!$M$1,G201,E201))","v":""},"",{"$f":"IF(F201=\"\",\"\",INDEX(referentes!$S:$S,MATCH(F201,referentes!$W:$W,0)))","v":""},null,null,""]
[null,{"$f":"IF(C202=\"\",\"\",IF(COUNTIF($C$3:C202, C202)>1, \"\", C202))","v":""},{"$f":"IF(G202=\"\",\"\",CONCATENATE(DIGITADOR!$M$1,G202,E202))","v":""},"",{"$f":"IF(F202=\"\",\"\",INDEX(referentes!$S:$S,MATCH(F202,referentes!$W:$W,0)))","v":""},null,null,""]
[null,{"$f":"IF(C203=\"\",\"\",IF(COUNTIF($C$3:C203, C203)>1, \"\", C203))","v":""},{"$f":"IF(G203=\"\",\"\",CONCATENATE(DIGITADOR!$M$1,G203,E203))","v":""},"",{"$f":"IF(F203=\"\",\"\",INDEX(referentes!$S:$S,MATCH(F203,referentes!$W:$W,0)))","v":""},null,null,""]
[null,{"$f":"IF(C204=\"\",\"\",IF(COUNTIF($C$3:C204, C204)>1, \"\", C204))","v":""},{"$f":"IF(G204=\"\",\"\",CONCATENATE(DIGITADOR!$M$1,G204,E204))","v":""},"",{"$f":"IF(F204=\"\",\"\",INDEX(referentes!$S:$S,MATCH(F204,referentes!$W:$W,0)))","v":""},null,null,""]
[null,{"$f":"IF(C205=\"\",\"\",IF(COUNTIF($C$3:C205, C205)>1, \"\", C205))","v":""},{"$f":"IF(G205=\"\",\"\",CONCATENATE(DIGITADOR!$M$1,G205,E205))","v":""},"",{"$f":"IF(F205=\"\",\"\",INDEX(referentes!$S:$S,MATCH(F205,referentes!$W:$W,0)))","v":""},null,null,""]
[null,{"$f":"IF(C206=\"\",\"\",IF(COUNTIF($C$3:C206, C206)>1, \"\", C206))","v":""},{"$f":"IF(G206=\"\",\"\",CONCATENATE(DIGITADOR!$M$1,G206,E206))","v":""},"",{"$f":"IF(F206=\"\",\"\",INDEX(referentes!$S:$S,MATCH(F206,referentes!$W:$W,0)))","v":""},null,null,""]
[null,{"$f":"IF(C207=\"\",\"\",IF(COUNTIF($C$3:C207, C207)>1, \"\", C207))","v":""},{"$f":"IF(G207=\"\",\"\",CONCATENATE(DIGITADOR!$M$1,G207,E207))","v":""},"",{"$f":"IF(F207=\"\",\"\",INDEX(referentes!$S:$S,MATCH(F207,referentes!$W:$W,0)))","v":""},null,null,""]
[null,{"$f":"IF(C208=\"\",\"\",IF(COUNTIF($C$3:C208, C208)>1, \"\", C208))","v":""},{"$f":"IF(G208=\"\",\"\",CONCATENATE(DIGITADOR!$M$1,G208,E208))","v":""},"",{"$f":"IF(F208=\"\",\"\",INDEX(referentes!$S:$S,MATCH(F208,referentes!$W:$W,0)))","v":""},null,null,""]
[null,{"$f":"IF(C209=\"\",\"\",IF(COUNTIF($C$3:C209, C209)>1, \"\", C209))","v":""},{"$f":"IF(G209=\"\",\"\",CONCATENATE(DIGITADOR!$M$1,G209,E209))","v":""},"",{"$f":"IF(F209=\"\",\"\",INDEX(referentes!$S:$S,MATCH(F209,referentes!$W:$W,0)))","v":""},null,null,""]
[null,{"$f":"IF(C210=\"\",\"\",IF(COUNTIF($C$3:C210, C210)>1, \"\", C210))","v":""},{"$f":"IF(G210=\"\",\"\",CONCATENATE(DIGITADOR!$M$1,G210,E210))","v":""},"",{"$f":"IF(F210=\"\",\"\",INDEX(referentes!$S:$S,MATCH(F210,referentes!$W:$W,0)))","v":""},null,null,""]
[null,{"$f":"IF(C211=\"\",\"\",IF(COUNTIF($C$3:C211, C211)>1, \"\", C211))","v":""},{"$f":"IF(G211=\"\",\"\",CONCATENATE(DIGITADOR!$M$1,G211,E211))","v":""},"",{"$f":"IF(F211=\"\",\"\",INDEX(referentes!$S:$S,MATCH(F211,referentes!$W:$W,0)))","v":""},null,null,""]
[null,{"$f":"IF(C212=\"\",\"\",IF(COUNTIF($C$3:C212, C212)>1, \"\", C212))","v":""},{"$f":"IF(G212=\"\",\"\",CONCATENATE(DIGITADOR!$M$1,G212,E212))","v":""},"",{"$f":"IF(F212=\"\",\"\",INDEX(referentes!$S:$S,MATCH(F212,referentes!$W:$W,0)))","v":""},null,null,""]
[null,{"$f":"IF(C213=\"\",\"\",IF(COUNTIF($C$3:C213, C213)>1, \"\", C213))","v":""},{"$f":"IF(G213=\"\",\"\",CONCATENATE(DIGITADOR!$M$1,G213,E213))","v":""},"",{"$f":"IF(F213=\"\",\"\",INDEX(referentes!$S:$S,MATCH(F213,referentes!$W:$W,0)))","v":""},null,null,""]
[null,{"$f":"IF(C214=\"\",\"\",IF(COUNTIF($C$3:C214, C214)>1, \"\", C214))","v":""},{"$f":"IF(G214=\"\",\"\",CONCATENATE(DIGITADOR!$M$1,G214,E214))","v":""},"",{"$f":"IF(F214=\"\",\"\",INDEX(referentes!$S:$S,MATCH(F214,referentes!$W:$W,0)))","v":""},null,null,""]
[null,{"$f":"IF(C215=\"\",\"\",IF(COUNTIF($C$3:C215, C215)>1, \"\", C215))","v":""},{"$f":"IF(G215=\"\",\"\",CONCATENATE(DIGITADOR!$M$1,G215,E215))","v":""},"",{"$f":"IF(F215=\"\",\"\",INDEX(referentes!$S:$S,MATCH(F215,referentes!$W:$W,0)))","v":""},null,null,""]
[null,{"$f":"IF(C216=\"\",\"\",IF(COUNTIF($C$3:C216, C216)>1, \"\", C216))","v":""},{"$f":"IF(G216=\"\",\"\",CONCATENATE(DIGITADOR!$M$1,G216,E216))","v":""},"",{"$f":"IF(F216=\"\",\"\",INDEX(referentes!$S:$S,MATCH(F216,referentes!$W:$W,0)))","v":""},null,null,""]
[null,{"$f":"IF(C217=\"\",\"\",IF(COUNTIF($C$3:C217, C217)>1, \"\", C217))","v":""},{"$f":"IF(G217=\"\",\"\",CONCATENATE(DIGITADOR!$M$1,G217,E217))","v":""},"",{"$f":"IF(F217=\"\",\"\",INDEX(referentes!$S:$S,MATCH(F217,referentes!$W:$W,0)))","v":""},null,null,""]
[null,{"$f":"IF(C218=\"\",\"\",IF(COUNTIF($C$3:C218, C218)>1, \"\", C218))","v":""},{"$f":"IF(G218=\"\",\"\",CONCATENATE(DIGITADOR!$M$1,G218,E218))","v":""},"",{"$f":"IF(F218=\"\",\"\",INDEX(referentes!$S:$S,MATCH(F218,referentes!$W:$W,0)))","v":""},null,null,""]
[null,{"$f":"IF(C219=\"\",\"\",IF(COUNTIF($C$3:C219, C219)>1, \"\", C219))","v":""},{"$f":"IF(G219=\"\",\"\",CONCATENATE(DIGITADOR!$M$1,G219,E219))","v":""},"",{"$f":"IF(F219=\"\",\"\",INDEX(referentes!$S:$S,MATCH(F219,referentes!$W:$W,0)))","v":""},null,null,""]
[null,{"$f":"IF(C220=\"\",\"\",IF(COUNTIF($C$3:C220, C220)>1, \"\", C220))","v":""},{"$f":"IF(G220=\"\",\"\",CONCATENATE(DIGITADOR!$M$1,G220,E220))","v":""},"",{"$f":"IF(F220=\"\",\"\",INDEX(referentes!$S:$S,MATCH(F220,referentes!$W:$W,0)))","v":""},null,null,""]
[null,{"$f":"IF(C221=\"\",\"\",IF(COUNTIF($C$3:C221, C221)>1, \"\", C221))","v":""},{"$f":"IF(G221=\"\",\"\",CONCATENATE(DIGITADOR!$M$1,G221,E221))","v":""},"",{"$f":"IF(F221=\"\",\"\",INDEX(referentes!$S:$S,MATCH(F221,referentes!$W:$W,0)))","v":""},null,null,""]
[null,{"$f":"IF(C222=\"\",\"\",IF(COUNTIF($C$3:C222, C222)>1, \"\", C222))","v":""},{"$f":"IF(G222=\"\",\"\",CONCATENATE(DIGITADOR!$M$1,G222,E222))","v":""},"",{"$f":"IF(F222=\"\",\"\",INDEX(referentes!$S:$S,MATCH(F222,referentes!$W:$W,0)))","v":""},null,null,""]
[null,{"$f":"IF(C223=\"\",\"\",IF(COUNTIF($C$3:C223, C223)>1, \"\", C223))","v":""},{"$f":"IF(G223=\"\",\"\",CONCATENATE(DIGITADOR!$M$1,G223,E223))","v":""},"",{"$f":"IF(F223=\"\",\"\",INDEX(referentes!$S:$S,MATCH(F223,referentes!$W:$W,0)))","v":""},null,null,""]
[null,{"$f":"IF(C224=\"\",\"\",IF(COUNTIF($C$3:C224, C224)>1, \"\", C224))","v":""},{"$f":"IF(G224=\"\",\"\",CONCATENATE(DIGITADOR!$M$1,G224,E224))","v":""},"",{"$f":"IF(F224=\"\",\"\",INDEX(referentes!$S:$S,MATCH(F224,referentes!$W:$W,0)))","v":""},null,null,""]
[null,{"$f":"IF(C225=\"\",\"\",IF(COUNTIF($C$3:C225, C225)>1, \"\", C225))","v":""},{"$f":"IF(G225=\"\",\"\",CONCATENATE(DIGITADOR!$M$1,G225,E225))","v":""},"",{"$f":"IF(F225=\"\",\"\",INDEX(referentes!$S:$S,MATCH(F225,referentes!$W:$W,0)))","v":""},null,null,""]
[null,{"$f":"IF(C226=\"\",\"\",IF(COUNTIF($C$3:C226, C226)>1, \"\", C226))","v":""},{"$f":"IF(G226=\"\",\"\",CONCATENATE(DIGITADOR!$M$1,G226,E226))","v":""},"",{"$f":"IF(F226=\"\",\"\",INDEX(referentes!$S:$S,MATCH(F226,referentes!$W:$W,0)))","v":""},null,null,""]
[null,{"$f":"IF(C227=\"\",\"\",IF(COUNTIF($C$3:C227, C227)>1, \"\", C227))","v":""},{"$f":"IF(G227=\"\",\"\",CONCATENATE(DIGITADOR!$M$1,G227,E227))","v":""},"",{"$f":"IF(F227=\"\",\"\",INDEX(referentes!$S:$S,MATCH(F227,referentes!$W:$W,0)))","v":""},null,null,""]
[null,{"$f":"IF(C228=\"\",\"\",IF(COUNTIF($C$3:C228, C228)>1, \"\", C228))","v":""},{"$f":"IF(G228=\"\",\"\",CONCATENATE(DIGITADOR!$M$1,G228,E228))","v":""},"",{"$f":"IF(F228=\"\",\"\",INDEX(referentes!$S:$S,MATCH(F228,referentes!$W:$W,0)))","v":""},null,null,""]
[null,{"$f":"IF(C229=\"\",\"\",IF(COUNTIF($C$3:C229, C229)>1, \"\", C229))","v":""},{"$f":"IF(G229=\"\",\"\",CONCATENATE(DIGITADOR!$M$1,G229,E229))","v":""},"",{"$f":"IF(F229=\"\",\"\",INDEX(referentes!$S:$S,MATCH(F229,referentes!$W:$W,0)))","v":""},null,null,""]
[null,{"$f":"IF(C230=\"\",\"\",IF(COUNTIF($C$3:C230, C230)>1, \"\", C230))","v":""},{"$f":"IF(G230=\"\",\"\",CONCATENATE(DIGITADOR!$M$1,G230,E230))","v":""},"",{"$f":"IF(F230=\"\",\"\",INDEX(referentes!$S:$S,MATCH(F230,referentes!$W:$W,0)))","v":""},null,null,""]
[null,{"$f":"IF(C231=\"\",\"\",IF(COUNTIF($C$3:C231, C231)>1, \"\", C231))","v":""},{"$f":"IF(G231=\"\",\"\",CONCATENATE(DIGITADOR!$M$1,G231,E231))","v":""},"",{"$f":"IF(F231=\"\",\"\",INDEX(referentes!$S:$S,MATCH(F231,referentes!$W:$W,0)))","v":""},null,null,""]
[null,{"$f":"IF(C232=\"\",\"\",IF(COUNTIF($C$3:C232, C232)>1, \"\", C232))","v":""},{"$f":"IF(G232=\"\",\"\",CONCATENATE(DIGITADOR!$M$1,G232,E232))","v":""},"",{"$f":"IF(F232=\"\",\"\",INDEX(referentes!$S:$S,MATCH(F232,referentes!$W:$W,0)))","v":""},null,null,""]
[null,{"$f":"IF(C233=\"\",\"\",IF(COUNTIF($C$3:C233, C233)>1, \"\", C233))","v":""},{"$f":"IF(G233=\"\",\"\",CONCATENATE(DIGITADOR!$M$1,G233,E233))","v":""},"",{"$f":"IF(F233=\"\",\"\",INDEX(referentes!$S:$S,MATCH(F233,referentes!$W:$W,0)))","v":""},null,null,""]
[null,{"$f":"IF(C234=\"\",\"\",IF(COUNTIF($C$3:C234, C234)>1, \"\", C234))","v":""},{"$f":"IF(G234=\"\",\"\",CONCATENATE(DIGITADOR!$M$1,G234,E234))","v":""},"",{"$f":"IF(F234=\"\",\"\",INDEX(referentes!$S:$S,MATCH(F234,referentes!$W:$W,0)))","v":""},null,null,""]
[null,{"$f":"IF(C235=\"\",\"\",IF(COUNTIF($C$3:C235, C235)>1, \"\", C235))","v":""},{"$f":"IF(G235=\"\",\"\",CONCATENATE(DIGITADOR!$M$1,G235,E235))","v":""},"",{"$f":"IF(F235=\"\",\"\",INDEX(referentes!$S:$S,MATCH(F235,referentes!$W:$W,0)))","v":""},null,null,""]
[null,{"$f":"IF(C236=\"\",\"\",IF(COUNTIF($C$3:C236, C236)>1, \"\", C236))","v":""},{"$f":"IF(G236=\"\",\"\",CONCATENATE(DIGITADOR!$M$1,G236,E236))","v":""},"",{"$f":"IF(F236=\"\",\"\",INDEX(referentes!$S:$S,MATCH(F236,referentes!$W:$W,0)))","v":""},null,null,""]
[null,{"$f":"IF(C237=\"\",\"\",IF(COUNTIF($C$3:C237, C237)>1, \"\", C237))","v":""},{"$f":"IF(G237=\"\",\"\",CONCATENATE(DIGITADOR!$M$1,G237,E237))","v":""},"",{"$f":"IF(F237=\"\",\"\",INDEX(referentes!$S:$S,MATCH(F237,referentes!$W:$W,0)))","v":""},null,null,""]
[null,{"$f":"IF(C238=\"\",\"\",IF(COUNTIF($C$3:C238, C238)>1, \"\", C238))","v":""},{"$f":"IF(G238=\"\",\"\",CONCATENATE(DIGITADOR!$M$1,G238,E238))","v":""},"",{"$f":"IF(F238=\"\",\"\",INDEX(referentes!$S:$S,MATCH(F238,referentes!$W:$W,0)))","v":""},null,null,""]
[null,{"$f":"IF(C239=\"\",\"\",IF(COUNTIF($C$3:C239, C239)>1, \"\", C239))","v":""},{"$f":"IF(G239=\"\",\"\",CONCATENATE(DIGITADOR!$M$1,G239,E239))","v":""},"",{"$f":"IF(F239=\"\",\"\",INDEX(referentes!$S:$S,MATCH(F239,referentes!$W:$W,0)))","v":""},null,null,""]
[null,{"$f":"IF(C240=\"\",\"\",IF(COUNTIF($C$3:C240, C240)>1, \"\", C240))","v":""},{"$f":"IF(G240=\"\",\"\",CONCATENATE(DIGITADOR!$M$1,G240,E240))","v":""},"",{"$f":"IF(F240=\"\",\"\",INDEX(referentes!$S:$S,MATCH(F240,referentes!$W:$W,0)))","v":""},null,null,""]
[null,{"$f":"IF(C241=\"\",\"\",IF(COUNTIF($C$3:C241, C241)>1, \"\", C241))","v":""},{"$f":"IF(G241=\"\",\"\",CONCATENATE(DIGITADOR!$M$1,G241,E241))","v":""},"",{"$f":"IF(F241=\"\",\"\",INDEX(referentes!$S:$S,MATCH(F241,referentes!$W:$W,0)))","v":""},null,null,""]
[null,{"$f":"IF(C242=\"\",\"\",IF(COUNTIF($C$3:C242, C242)>1, \"\", C242))","v":""},{"$f":"IF(G242=\"\",\"\",CONCATENATE(DIGITADOR!$M$1,G242,E242))","v":""},"",{"$f":"IF(F242=\"\",\"\",INDEX(referentes!$S:$S,MATCH(F242,referentes!$W:$W,0)))","v":""},null,null,""]
[null,{"$f":"IF(C243=\"\",\"\",IF(COUNTIF($C$3:C243, C243)>1, \"\", C243))","v":""},{"$f":"IF(G243=\"\",\"\",CONCATENATE(DIGITADOR!$M$1,G243,E243))","v":""},"",{"$f":"IF(F243=\"\",\"\",INDEX(referentes!$S:$S,MATCH(F243,referentes!$W:$W,0)))","v":""},null,null,""]
[null,{"$f":"IF(C244=\"\",\"\",IF(COUNTIF($C$3:C244, C244)>1, \"\", C244))","v":""},{"$f":"IF(G244=\"\",\"\",CONCATENATE(DIGITADOR!$M$1,G244,E244))","v":""},"",{"$f":"IF(F244=\"\",\"\",INDEX(referentes!$S:$S,MATCH(F244,referentes!$W:$W,0)))","v":""},null,null,""]
[null,{"$f":"IF(C245=\"\",\"\",IF(COUNTIF($C$3:C245, C245)>1, \"\", C245))","v":""},{"$f":"IF(G245=\"\",\"\",CONCATENATE(DIGITADOR!$M$1,G245,E245))","v":""},"",{"$f":"IF(F245=\"\",\"\",INDEX(referentes!$S:$S,MATCH(F245,referentes!$W:$W,0)))","v":""},null,null,""]
[null,{"$f":"IF(C246=\"\",\"\",IF(COUNTIF($C$3:C246, C246)>1, \"\", C246))","v":""},{"$f":"IF(G246=\"\",\"\",CONCATENATE(DIGITADOR!$M$1,G246,E246))","v":""},"",{"$f":"IF(F246=\"\",\"\",INDEX(referentes!$S:$S,MATCH(F246,referentes!$W:$W,0)))","v":""},null,null,""]
[null,{"$f":"IF(C247=\"\",\"\",IF(COUNTIF($C$3:C247, C247)>1, \"\", C247))","v":""},{"$f":"IF(G247=\"\",\"\",CONCATENATE(DIGITADOR!$M$1,G247,E247))","v":""},"",{"$f":"IF(F247=\"\",\"\",INDEX(referentes!$S:$S,MATCH(F247,referentes!$W:$W,0)))","v":""},null,null,""]
[null,{"$f":"IF(C248=\"\",\"\",IF(COUNTIF($C$3:C248, C248)>1, \"\", C248))","v":""},{"$f":"IF(G248=\"\",\"\",CONCATENATE(DIGITADOR!$M$1,G248,E248))","v":""},"",{"$f":"IF(F248=\"\",\"\",INDEX(referentes!$S:$S,MATCH(F248,referentes!$W:$W,0)))","v":""},null,null,""]
[null,{"$f":"IF(C249=\"\",\"\",IF(COUNTIF($C$3:C249, C249)>1, \"\", C249))","v":""},{"$f":"IF(G249=\"\",\"\",CONCATENATE(DIGITADOR!$M$1,G249,E249))","v":""},"",{"$f":"IF(F249=\"\",\"\",INDEX(referentes!$S:$S,MATCH(F249,referentes!$W:$W,0)))","v":""},null,null,""]
[null,{"$f":"IF(C250=\"\",\"\",IF(COUNTIF($C$3:C250, C250)>1, \"\", C250))","v":""},{"$f":"IF(G250=\"\",\"\",CONCATENATE(DIGITADOR!$M$1,G250,E250))","v":""},"",{"$f":"IF(F250=\"\",\"\",INDEX(referentes!$S:$S,MATCH(F250,referentes!$W:$W,0)))","v":""},null,null,""]
[null,{"$f":"IF(C251=\"\",\"\",IF(COUNTIF($C$3:C251, C251)>1, \"\", C251))","v":""},{"$f":"IF(G251=\"\",\"\",CONCATENATE(DIGITADOR!$M$1,G251,E251))","v":""},"",{"$f":"IF(F251=\"\",\"\",INDEX(referentes!$S:$S,MATCH(F251,referentes!$W:$W,0)))","v":""},null,null,""]
[null,{"$f":"IF(C252=\"\",\"\",IF(COUNTIF($C$3:C252, C252)>1, \"\", C252))","v":""},{"$f":"IF(G252=\"\",\"\",CONCATENATE(DIGITADOR!$M$1,G252,E252))","v":""},"",{"$f":"IF(F252=\"\",\"\",INDEX(referentes!$S:$S,MATCH(F252,referentes!$W:$W,0)))","v":""},null,null,""]
[null,{"$f":"IF(C253=\"\",\"\",IF(COUNTIF($C$3:C253, C253)>1, \"\", C253))","v":""},{"$f":"IF(G253=\"\",\"\",CONCATENATE(DIGITADOR!$M$1,G253,E253))","v":""},"",{"$f":"IF(F253=\"\",\"\",INDEX(referentes!$S:$S,MATCH(F253,referentes!$W:$W,0)))","v":""},null,null,""]
[null,{"$f":"IF(C254=\"\",\"\",IF(COUNTIF($C$3:C254, C254)>1, \"\", C254))","v":""},{"$f":"IF(G254=\"\",\"\",CONCATENATE(DIGITADOR!$M$1,G254,E254))","v":""},"",{"$f":"IF(F254=\"\",\"\",INDEX(referentes!$S:$S,MATCH(F254,referentes!$W:$W,0)))","v":""},null,null,""]
[null,{"$f":"IF(C255=\"\",\"\",IF(COUNTIF($C$3:C255, C255)>1, \"\", C255))","v":""},{"$f":"IF(G255=\"\",\"\",CONCATENATE(DIGITADOR!$M$1,G255,E255))","v":""},"",{"$f":"IF(F255=\"\",\"\",INDEX(referentes!$S:$S,MATCH(F255,referentes!$W:$W,0)))","v":""},null,null,""]
[null,{"$f":"IF(C256=\"\",\"\",IF(COUNTIF($C$3:C256, C256)>1, \"\", C256))","v":""},{"$f":"IF(G256=\"\",\"\",CONCATENATE(DIGITADOR!$M$1,G256,E256))","v":""},"",{"$f":"IF(F256=\"\",\"\",INDEX(referentes!$S:$S,MATCH(F256,referentes!$W:$W,0)))","v":""},null,null,""]
[null,{"$f":"IF(C257=\"\",\"\",IF(COUNTIF($C$3:C257, C257)>1, \"\", C257))","v":""},{"$f":"IF(G257=\"\",\"\",CONCATENATE(DIGITADOR!$M$1,G257,E257))","v":""},"",{"$f":"IF(F257=\"\",\"\",INDEX(referentes!$S:$S,MATCH(F257,referentes!$W:$W,0)))","v":""},null,null,""]
[null,{"$f":"IF(C258=\"\",\"\",IF(COUNTIF($C$3:C258, C258)>1, \"\", C258))","v":""},{"$f":"IF(G258=\"\",\"\",CONCATENATE(DIGITADOR!$M$1,G258,E258))","v":""},"",{"$f":"IF(F258=\"\",\"\",INDEX(referentes!$S:$S,MATCH(F258,referentes!$W:$W,0)))","v":""},null,null,""]
[null,{"$f":"IF(C259=\"\",\"\",IF(COUNTIF($C$3:C259, C259)>1, \"\", C259))","v":""},{"$f":"IF(G259=\"\",\"\",CONCATENATE(DIGITADOR!$M$1,G259,E259))","v":""},"",{"$f":"IF(F259=\"\",\"\",INDEX(referentes!$S:$S,MATCH(F259,referentes!$W:$W,0)))","v":""},null,null,""]
[null,{"$f":"IF(C260=\"\",\"\",IF(COUNTIF($C$3:C260, C260)>1, \"\", C260))","v":""},{"$f":"IF(G260=\"\",\"\",CONCATENATE(DIGITADOR!$M$1,G260,E260))","v":""},{"$f":"IF(C260=\"\",\"\",CONCATENATE(C260,ROW()-2))","v":""},{"$f":"IF(F260=\"\",\"\",INDEX(referentes!$S:$S,MATCH(F260,referentes!$W:$W,0)))","v":""},null,null,{"$f":"IF(I260=\"\",\"\",TEXT(I260,\"hh:mm\"))","v":""}]
[null,{"$f":"IF(C261=\"\",\"\",IF(COUNTIF($C$3:C261, C261)>1, \"\", C261))","v":""},{"$f":"IF(G261=\"\",\"\",CONCATENATE(DIGITADOR!$M$1,G261,E261))","v":""},"",{"$f":"IF(F261=\"\",\"\",INDEX(referentes!$S:$S,MATCH(F261,referentes!$W:$W,0)))","v":""},null,null,""]
[null,{"$f":"IF(C262=\"\",\"\",IF(COUNTIF($C$3:C262, C262)>1, \"\", C262))","v":""},{"$f":"IF(G262=\"\",\"\",CONCATENATE(DIGITADOR!$M$1,G262,E262))","v":""},"",{"$f":"IF(F262=\"\",\"\",INDEX(referentes!$S:$S,MATCH(F262,referentes!$W:$W,0)))","v":""},null,null,""]
[null,{"$f":"IF(C263=\"\",\"\",IF(COUNTIF($C$3:C263, C263)>1, \"\", C263))","v":""},{"$f":"IF(G263=\"\",\"\",CONCATENATE(DIGITADOR!$M$1,G263,E263))","v":""},"",{"$f":"IF(F263=\"\",\"\",INDEX(referentes!$S:$S,MATCH(F263,referentes!$W:$W,0)))","v":""},null,null,""]
[null,{"$f":"IF(C264=\"\",\"\",IF(COUNTIF($C$3:C264, C264)>1, \"\", C264))","v":""},{"$f":"IF(G264=\"\",\"\",CONCATENATE(DIGITADOR!$M$1,G264,E264))","v":""},"",{"$f":"IF(F264=\"\",\"\",INDEX(referentes!$S:$S,MATCH(F264,referentes!$W:$W,0)))","v":""},null,null,""]
[null,{"$f":"IF(C265=\"\",\"\",IF(COUNTIF($C$3:C265, C265)>1, \"\", C265))","v":""},{"$f":"IF(G265=\"\",\"\",CONCATENATE(DIGITADOR!$M$1,G265,E265))","v":""},"",{"$f":"IF(F265=\"\",\"\",INDEX(referentes!$S:$S,MATCH(F265,referentes!$W:$W,0)))","v":""},null,null,""]
[null,{"$f":"IF(C266=\"\",\"\",IF(COUNTIF($C$3:C266, C266)>1, \"\", C266))","v":""},{"$f":"IF(G266=\"\",\"\",CONCATENATE(DIGITADOR!$M$1,G266,E266))","v":""},"",{"$f":"IF(F266=\"\",\"\",INDEX(referentes!$S:$S,MATCH(F266,referentes!$W:$W,0)))","v":""},null,null,""]
[null,{"$f":"IF(C267=\"\",\"\",IF(COUNTIF($C$3:C267, C267)>1, \"\", C267))","v":""},{"$f":"IF(G267=\"\",\"\",CONCATENATE(DIGITADOR!$M$1,G267,E267))","v":""},"",{"$f":"IF(F267=\"\",\"\",INDEX(referentes!$S:$S,MATCH(F267,referentes!$W:$W,0)))","v":""},null,null,""]
[null,{"$f":"IF(C268=\"\",\"\",IF(COUNTIF($C$3:C268, C268)>1, \"\", C268))","v":""},{"$f":"IF(G268=\"\",\"\",CONCATENATE(DIGITADOR!$M$1,G268,E268))","v":""},"",{"$f":"IF(F268=\"\",\"\",INDEX(referentes!$S:$S,MATCH(F268,referentes!$W:$W,0)))","v":""},null,null,""]
[null,{"$f":"IF(C269=\"\",\"\",IF(COUNTIF($C$3:C269, C269)>1, \"\", C269))","v":""},{"$f":"IF(G269=\"\",\"\",CONCATENATE(DIGITADOR!$M$1,G269,E269))","v":""},"",{"$f":"IF(F269=\"\",\"\",INDEX(referentes!$S:$S,MATCH(F269,referentes!$W:$W,0)))","v":""},null,null,""]
[null,{"$f":"IF(C270=\"\",\"\",IF(COUNTIF($C$3:C270, C270)>1, \"\", C270))","v":""},{"$f":"IF(G270=\"\",\"\",CONCATENATE(DIGITADOR!$M$1,G270,E270))","v":""},"",{"$f":"IF(F270=\"\",\"\",INDEX(referentes!$S:$S,MATCH(F270,referentes!$W:$W,0)))","v":""},null,null,""]
[null,{"$f":"IF(C271=\"\",\"\",IF(COUNTIF($C$3:C271, C271)>1, \"\", C271))","v":""},{"$f":"IF(G271=\"\",\"\",CONCATENATE(DIGITADOR!$M$1,G271,E271))","v":""},"",{"$f":"IF(F271=\"\",\"\",INDEX(referentes!$S:$S,MATCH(F271,referentes!$W:$W,0)))","v":""},null,null,""]
[null,{"$f":"IF(C272=\"\",\"\",IF(COUNTIF($C$3:C272, C272)>1, \"\", C272))","v":""},{"$f":"IF(G272=\"\",\"\",CONCATENATE(DIGITADOR!$M$1,G272,E272))","v":""},"",{"$f":"IF(F272=\"\",\"\",INDEX(referentes!$S:$S,MATCH(F272,referentes!$W:$W,0)))","v":""},null,null,""]
[null,{"$f":"IF(C273=\"\",\"\",IF(COUNTIF($C$3:C273, C273)>1, \"\", C273))","v":""},{"$f":"IF(G273=\"\",\"\",CONCATENATE(DIGITADOR!$M$1,G273,E273))","v":""},"",{"$f":"IF(F273=\"\",\"\",INDEX(referentes!$S:$S,MATCH(F273,referentes!$W:$W,0)))","v":""},null,null,""]
[null,{"$f":"IF(C274=\"\",\"\",IF(COUNTIF($C$3:C274, C274)>1, \"\", C274))","v":""},{"$f":"IF(G274=\"\",\"\",CONCATENATE(DIGITADOR!$M$1,G274,E274))","v":""},"",{"$f":"IF(F274=\"\",\"\",INDEX(referentes!$S:$S,MATCH(F274,referentes!$W:$W,0)))","v":""},null,null,""]
[null,{"$f":"IF(C275=\"\",\"\",IF(COUNTIF($C$3:C275, C275)>1, \"\", C275))","v":""},{"$f":"IF(G275=\"\",\"\",CONCATENATE(DIGITADOR!$M$1,G275,E275))","v":""},"",{"$f":"IF(F275=\"\",\"\",INDEX(referentes!$S:$S,MATCH(F275,referentes!$W:$W,0)))","v":""},null,null,""]
[null,{"$f":"IF(C276=\"\",\"\",IF(COUNTIF($C$3:C276, C276)>1, \"\", C276))","v":""},{"$f":"IF(G276=\"\",\"\",CONCATENATE(DIGITADOR!$M$1,G276,E276))","v":""},"",{"$f":"IF(F276=\"\",\"\",INDEX(referentes!$S:$S,MATCH(F276,referentes!$W:$W,0)))","v":""},null,null,""]
[null,{"$f":"IF(C277=\"\",\"\",IF(COUNTIF($C$3:C277, C277)>1, \"\", C277))","v":""},{"$f":"IF(G277=\"\",\"\",CONCATENATE(DIGITADOR!$M$1,G277,E277))","v":""},"",{"$f":"IF(F277=\"\",\"\",INDEX(referentes!$S:$S,MATCH(F277,referentes!$W:$W,0)))","v":""},null,null,""]
[null,{"$f":"IF(C278=\"\",\"\",IF(COUNTIF($C$3:C278, C278)>1, \"\", C278))","v":""},{"$f":"IF(G278=\"\",\"\",CONCATENATE(DIGITADOR!$M$1,G278,E278))","v":""},"",{"$f":"IF(F278=\"\",\"\",INDEX(referentes!$S:$S,MATCH(F278,referentes!$W:$W,0)))","v":""},null,null,""]
[null,{"$f":"IF(C279=\"\",\"\",IF(COUNTIF($C$3:C279, C279)>1, \"\", C279))","v":""},{"$f":"IF(G279=\"\",\"\",CONCATENATE(DIGITADOR!$M$1,G279,E279))","v":""},"",{"$f":"IF(F279=\"\",\"\",INDEX(referentes!$S:$S,MATCH(F279,referentes!$W:$W,0)))","v":""},null,null,""]
[null,{"$f":"IF(C280=\"\",\"\",IF(COUNTIF($C$3:C280, C280)>1, \"\", C280))","v":""},{"$f":"IF(G280=\"\",\"\",CONCATENATE(DIGITADOR!$M$1,G280,E280))","v":""},"",{"$f":"IF(F280=\"\",\"\",INDEX(referentes!$S:$S,MATCH(F280,referentes!$W:$W,0)))","v":""},null,null,""]
[null,{"$f":"IF(C281=\"\",\"\",IF(COUNTIF($C$3:C281, C281)>1, \"\", C281))","v":""},{"$f":"IF(G281=\"\",\"\",CONCATENATE(DIGITADOR!$M$1,G281,E281))","v":""},"",{"$f":"IF(F281=\"\",\"\",INDEX(referentes!$S:$S,MATCH(F281,referentes!$W:$W,0)))","v":""},null,null,""]
[null,{"$f":"IF(C282=\"\",\"\",IF(COUNTIF($C$3:C282, C282)>1, \"\", C282))","v":""},{"$f":"IF(G282=\"\",\"\",CONCATENATE(DIGITADOR!$M$1,G282,E282))","v":""},"",{"$f":"IF(F282=\"\",\"\",INDEX(referentes!$S:$S,MATCH(F282,referentes!$W:$W,0)))","v":""},null,null,""]
[null,{"$f":"IF(C283=\"\",\"\",IF(COUNTIF($C$3:C283, C283)>1, \"\", C283))","v":""},{"$f":"IF(G283=\"\",\"\",CONCATENATE(DIGITADOR!$M$1,G283,E283))","v":""},"",{"$f":"IF(F283=\"\",\"\",INDEX(referentes!$S:$S,MATCH(F283,referentes!$W:$W,0)))","v":""},null,null,""]
[null,{"$f":"IF(C284=\"\",\"\",IF(COUNTIF($C$3:C284, C284)>1, \"\", C284))","v":""},{"$f":"IF(G284=\"\",\"\",CONCATENATE(DIGITADOR!$M$1,G284,E284))","v":""},"",{"$f":"IF(F284=\"\",\"\",INDEX(referentes!$S:$S,MATCH(F284,referentes!$W:$W,0)))","v":""},null,null,""]
[null,{"$f":"IF(C285=\"\",\"\",IF(COUNTIF($C$3:C285, C285)>1, \"\", C285))","v":""},{"$f":"IF(G285=\"\",\"\",CONCATENATE(DIGITADOR!$M$1,G285,E285))","v":""},"",{"$f":"IF(F285=\"\",\"\",INDEX(referentes!$S:$S,MATCH(F285,referentes!$W:$W,0)))","v":""},null,null,""]
[null,{"$f":"IF(C286=\"\",\"\",IF(COUNTIF($C$3:C286, C286)>1, \"\", C286))","v":""},{"$f":"IF(G286=\"\",\"\",CONCATENATE(DIGITADOR!$M$1,G286,E286))","v":""},"",{"$f":"IF(F286=\"\",\"\",INDEX(referentes!$S:$S,MATCH(F286,referentes!$W:$W,0)))","v":""},null,null,""]
[null,{"$f":"IF(C287=\"\",\"\",IF(COUNTIF($C$3:C287, C287)>1, \"\", C287))","v":""},{"$f":"IF(G287=\"\",\"\",CONCATENATE(DIGITADOR!$M$1,G287,E287))","v":""},"",{"$f":"IF(F287=\"\",\"\",INDEX(referentes!$S:$S,MATCH(F287,referentes!$W:$W,0)))","v":""},null,null,""]
[null,{"$f":"IF(C288=\"\",\"\",IF(COUNTIF($C$3:C288, C288)>1, \"\", C288))","v":""},{"$f":"IF(G288=\"\",\"\",CONCATENATE(DIGITADOR!$M$1,G288,E288))","v":""},"",{"$f":"IF(F288=\"\",\"\",INDEX(referentes!$S:$S,MATCH(F288,referentes!$W:$W,0)))","v":""},null,null,""]
[null,{"$f":"IF(C289=\"\",\"\",IF(COUNTIF($C$3:C289, C289)>1, \"\", C289))","v":""},{"$f":"IF(G289=\"\",\"\",CONCATENATE(DIGITADOR!$M$1,G289,E289))","v":""},"",{"$f":"IF(F289=\"\",\"\",INDEX(referentes!$S:$S,MATCH(F289,referentes!$W:$W,0)))","v":""},null,null,""]
[null,{"$f":"IF(C290=\"\",\"\",IF(COUNTIF($C$3:C290, C290)>1, \"\", C290))","v":""},{"$f":"IF(G290=\"\",\"\",CONCATENATE(DIGITADOR!$M$1,G290,E290))","v":""},"",{"$f":"IF(F290=\"\",\"\",INDEX(referentes!$S:$S,MATCH(F290,referentes!$W:$W,0)))","v":""},null,null,""]
[null,{"$f":"IF(C291=\"\",\"\",IF(COUNTIF($C$3:C291, C291)>1, \"\", C291))","v":""},{"$f":"IF(G291=\"\",\"\",CONCATENATE(DIGITADOR!$M$1,G291,E291))","v":""},"",{"$f":"IF(F291=\"\",\"\",INDEX(referentes!$S:$S,MATCH(F291,referentes!$W:$W,0)))","v":""},null,null,""]
[null,{"$f":"IF(C292=\"\",\"\",IF(COUNTIF($C$3:C292, C292)>1, \"\", C292))","v":""},{"$f":"IF(G292=\"\",\"\",CONCATENATE(DIGITADOR!$M$1,G292,E292))","v":""},"",{"$f":"IF(F292=\"\",\"\",INDEX(referentes!$S:$S,MATCH(F292,referentes!$W:$W,0)))","v":""},null,null,""]
[null,{"$f":"IF(C293=\"\",\"\",IF(COUNTIF($C$3:C293, C293)>1, \"\", C293))","v":""},{"$f":"IF(G293=\"\",\"\",CONCATENATE(DIGITADOR!$M$1,G293,E293))","v":""},"",{"$f":"IF(F293=\"\",\"\",INDEX(referentes!$S:$S,MATCH(F293,referentes!$W:$W,0)))","v":""},null,null,""]
[null,{"$f":"IF(C294=\"\",\"\",IF(COUNTIF($C$3:C294, C294)>1, \"\", C294))","v":""},{"$f":"IF(G294=\"\",\"\",CONCATENATE(DIGITADOR!$M$1,G294,E294))","v":""},"",{"$f":"IF(F294=\"\",\"\",INDEX(referentes!$S:$S,MATCH(F294,referentes!$W:$W,0)))","v":""},null,null,""]
[null,{"$f":"IF(C295=\"\",\"\",IF(COUNTIF($C$3:C295, C295)>1, \"\", C295))","v":""},{"$f":"IF(G295=\"\",\"\",CONCATENATE(DIGITADOR!$M$1,G295,E295))","v":""},"",{"$f":"IF(F295=\"\",\"\",INDEX(referentes!$S:$S,MATCH(F295,referentes!$W:$W,0)))","v":""},null,null,""]
[null,{"$f":"IF(C296=\"\",\"\",IF(COUNTIF($C$3:C296, C296)>1, \"\", C296))","v":""},{"$f":"IF(G296=\"\",\"\",CONCATENATE(DIGITADOR!$M$1,G296,E296))","v":""},"",{"$f":"IF(F296=\"\",\"\",INDEX(referentes!$S:$S,MATCH(F296,referentes!$W:$W,0)))","v":""},null,null,""]
[null,{"$f":"IF(C297=\"\",\"\",IF(COUNTIF($C$3:C297, C297)>1, \"\", C297))","v":""},{"$f":"IF(G297=\"\",\"\",CONCATENATE(DIGITADOR!$M$1,G297,E297))","v":""},"",{"$f":"IF(F297=\"\",\"\",INDEX(referentes!$S:$S,MATCH(F297,referentes!$W:$W,0)))","v":""},null,null,""]
[null,{"$f":"IF(C298=\"\",\"\",IF(COUNTIF($C$3:C298, C298)>1, \"\", C298))","v":""},{"$f":"IF(G298=\"\",\"\",CONCATENATE(DIGITADOR!$M$1,G298,E298))","v":""},"",{"$f":"IF(F298=\"\",\"\",INDEX(referentes!$S:$S,MATCH(F298,referentes!$W:$W,0)))","v":""},null,null,""]
[null,{"$f":"IF(C299=\"\",\"\",IF(COUNTIF($C$3:C299, C299)>1, \"\", C299))","v":""},{"$f":"IF(G299=\"\",\"\",CONCATENATE(DIGITADOR!$M$1,G299,E299))","v":""},"",{"$f":"IF(F299=\"\",\"\",INDEX(referentes!$S:$S,MATCH(F299,referentes!$W:$W,0)))","v":""},null,null,""]
[null,{"$f":"IF(C300=\"\",\"\",IF(COUNTIF($C$3:C300, C300)>1, \"\", C300))","v":""},{"$f":"IF(G300=\"\",\"\",CONCATENATE(DIGITADOR!$M$1,G300,E300))","v":""},"",{"$f":"IF(F300=\"\",\"\",INDEX(referentes!$S:$S,MATCH(F300,referentes!$W:$W,0)))","v":""},null,null,""]
[null,{"$f":"IF(C301=\"\",\"\",IF(COUNTIF($C$3:C301, C301)>1, \"\", C301))","v":""},{"$f":"IF(G301=\"\",\"\",CONCATENATE(DIGITADOR!$M$1,G301,E301))","v":""},"",{"$f":"IF(F301=\"\",\"\",INDEX(referentes!$S:$S,MATCH(F301,referentes!$W:$W,0)))","v":""},null,null,""]
[null,{"$f":"IF(C302=\"\",\"\",IF(COUNTIF($C$3:C302, C302)>1, \"\", C302))","v":""},{"$f":"IF(G302=\"\",\"\",CONCATENATE(DIGITADOR!$M$1,G302,E302))","v":""},"",{"$f":"IF(F302=\"\",\"\",INDEX(referentes!$S:$S,MATCH(F302,referentes!$W:$W,0)))","v":""},null,null,""]
[null,{"$f":"IF(C303=\"\",\"\",IF(COUNTIF($C$3:C303, C303)>1, \"\", C303))","v":""},{"$f":"IF(G303=\"\",\"\",CONCATENATE(DIGITADOR!$M$1,G303,E303))","v":""},"",{"$f":"IF(F303=\"\",\"\",INDEX(referentes!$S:$S,MATCH(F303,referentes!$W:$W,0)))","v":""},null,null,""]
[null,null,null,null,{"$f":"IF(F304=\"\",\"\",INDEX(referentes!$S:$S,MATCH(F304,referentes!$W:$W,0)))","v":""}]

{"sheet":"referentes","index":4,"n_rows":140,"n_cols":30,"rows_kept":140,"cut":false,"hidden":false,"merged":[]}
["AG_LOV",3064,null,"AG_LOV",2007,null,"AG_LOV",3002,null,"AG_LOV",1071,null,"AG_LOV",1072,null,"cod_letras","descripcion",null,"secuencia_loc","prefijo_cdg_est_loc","codigo_estacion_loc","descripcion_estacion_loc","lugar"]
[4519,"Lluvia",null,"LTA","Litoral arenoso",null,"Macrofauna","Macrofauna",null,4522,"Nucleador/Corazonador",null,4523,"Toma directa con corazonador hasta 0.3 m2",null,null,null,"clave_sibm",55958,"Bahia_Cocinetas",96321,null,"Bahia Cocinetas1",null,3546,"Administrador SIGMA"]
[4520,"Seca",null,1,"Area coralina",null,"Megafauna","Megafauna",null,1,"Draga van Veen ",null,4524,"4 parcelas por estación y subcuadrantes de 9 m2",null,null,null,null,55957,"Bahia_Hondita",96321,null,"Bahia Hondita1",null,3444,"Alexandra Rodríguez",null,null,"AD Pto. Moin C.R.","Administración Desarrollo Complejo Portuario  Limón Moin Costa Rica"]
[4521,"Transición",null,2,"Columna de agua",null,"Meiofauna","Meiofauna",null,2,"Box Corer",null,1,"Lance Box corer 0,250 m2",null,null,null,null,55959,"Bahia_Tukakas",96321,null,"Bahia Tukakaspl1",null,8258,"Daniel Fernando Jiménez Rincón",null,null,"ANADARKO","Anadarko Colombia Company"]
[null,null,null,3,"Fondos blandos plataforma",null,"Microfauna","Microfauna",null,3,"Red de arrastre demersal tipo semi-balón",null,2,"Lance Box corer 0,0625 m2",null,null,null,null,55967,"Boca_Laenea1",96321,null,"Boca La enea1",null,8378,"David Alejandro Navarrete Rodríguez",null,null,"AQUABIOSFERA","Aquabiosfera SAS"]
[null,null,null,4,"Fondos duros plataforma",null,null,null,null,null,null,null,3,"Lance Draga van Veen 0,075 m2",null,null,null,null,55968,"Boca_Laenea2",96321,null,"Boca La enea2",null,4918,"Edgar Fernando Dorado Roncancio",null,null,"CALIDRIS","Asociación Calidris"]
[null,null,null,5,"Litoral rocoso",null,null,null,null,null,null,null,4,"Lance Draga van Veen 0,4 m2",null,null,null,null,56558,"Bocas_Atrato",96321,null,"Bocas del Atrato1",null,3403,"Eliana Marcela Barrios Vasquez",null,null,"ASOCARS","Asociación de Corporaciones Autónomas Regionales"]
[null,null,null,6,"Manglar",null,null,null,null,null,null,null,5,"Arrastre bentonico 10 min / 2,5 nudos",null,null,null,null,55972,"Broqueles",96321,null,"Broqueles1",null,7840,"Fair Fernando Dager Osorio",null,null,"ANLA","Autoridad Nacional de Licencias Ambientales"]
[null,null,null,7,"Playas",null,null,null,null,null,null,null,null,null,null,null,null,null,57245,"Buenavista1",96321,null,"Buenavista1",null,5685,"Henry Fabian Bustos Ordoñez",null,null,"ARAP","Autoridad de Recursos Acuáticos de Panamá"]
[null,null,null,8,"Praderas de pastos",null,null,null,null,null,null,null,null,null,null,null,null,null,57246,"Buenavista2",96321,null,"Buenavista2",null,7841,"Jean David Varilla Gonzalez",null,null,"CWOP","Caribbean-Wide Orca Project"]
[null,null,null,9,"Sustrato artificial",null,null,null,null,null,null,null,null,null,null,null,null,null,56551,"Camaronera",96321,null,"Camaronera1",null,8277,"Jeffry Bolaños",null,null,"CEAC","Centro de Estudios Ambientales de Cienfuegos"]
[null,null,null,10,"Fondos blandos del talud",null,null,null,null,null,null,null,null,null,null,null,null,null,55970,"Cristo_Rey",96321,null,"Cristo Rey1",null,8263,"Johan Casadiego Estévez",null,null,"CECIMAR","Centro de Estudios en Ciencias del Mar - Universidad Nacional"]
[null,null,null,11,"Oceánico costa afuera",null,null,null,null,null,null,null,null,null,null,null,null,null,55961,"Dibulla1_Occidente",96321,null,"Dibulla1 Occidente -Rio Jerez",null,7141,"Juan Camilo Rodríguez Atara",null,null,"CIEMAT","Centro de Investigaciones Energéticas, Medioambientales y Tecnológicas"]
[null,null,null,12,"Comunidad Planctónica",null,null,null,null,null,null,null,null,null,null,null,null,null,55962,"Dibulla2_Occidente",96321,null,"Dibulla2 Occidente -Rio Jerez",null,8264,"Juan Fernando Cortina Munera",null,null,"CIOH","Centro de Investigaciones Oceanográficas e Hidrográficas"]
[null,null,null,14,"Ciénaga",null,null,null,null,null,null,null,null,null,null,null,null,null,55974,"Laguna_Bocacorea",96321,null,"Laguna Bocacorea1",null,8217,"Juan Lazarus",null,null,"C.C.C.P.","Centro de Investigaciones Oceanográficas e Hidrográficas del Pacífico"]
[null,null,null,15,"Desembarco de pesca artesanal",null,null,null,null,null,null,null,null,null,null,null,null,null,56887,"4484701OCEA",100,null,"PMO - BAHIA COCINETAS",null,8265,"Kevin Samuel Moreno",null,null,"CEINER","Centro de Investigación Educación y Recreación Islas del Rosario"]
[null,null,null,null,null,null,null,null,null,null,null,null,null,null,null,null,null,null,56888,"4484703OCEA",100,null,"PMO - BAHIA HONDITA",null,8377,"Lady Liliana Espinosa Leal",null,null,"CIRA","Centro de Investigación de los Recursos Acuáticos de Nicaragua (CIRA)"]
[null,null,null,null,null,null,null,null,null,null,null,null,null,null,null,null,null,null,56886,"4484702OCEA",100,null,"PMO - BAHIA TUKAKAS",null,7757,"Laura  Martínez Lacharme",null,null,"CICA","Centro de Investigación en Contaminación Ambiental"]
[null,null,null,null,null,null,null,null,null,null,null,null,null,null,null,null,null,null,56921,"0583740OCEA",100,null,"PMO - BAHÍA EL UNO",null,4227,"Laura Sanchez Valencia",null,null,"CRBMUV","Colección de Referencia Biología Marina Universidad del Valle"]
[null,null,null,null,null,null,null,null,null,null,null,null,null,null,null,null,null,null,56895,"4456009OCEA",100,null,"PMO - BALLENAS",null,3281,"Leonardo José Arias Alemán (2022)",null,null,"Coleccion_Personal","Colección personal"]
[null,null,null,null,null,null,null,null,null,null,null,null,null,null,null,null,null,null,56902,"4409015OCEA",100,null,"PMO - BELLO HORIZONTE",null,8099,"Marco Elias Gonzalez Arteaga",null,null,"CPPS","Comisión Permanente del Pacífico Sur"]
[null,null,null,null,null,null,null,null,null,null,null,null,null,null,null,null,null,null,56914,"2350029OCEA",100,null,"PMO - BROQUELES",null,7197,"Miller Jose Florian Sanchez",null,null,"CI","Conservación Internacional Colombia "]
[null,null,null,null,null,null,null,null,null,null,null,null,null,null,null,null,null,null,56898,"4456011OCEA",100,null,"PMO - BUENAVISTA",null,8262,"Paula Andrea López Muñoz",null,null,"CONSULTOR","Consultor independiente "]
[null,null,null,null,null,null,null,null,null,null,null,null,null,null,null,null,null,null,56889,"4484704OCEA",100,null,"PMO - CABO DE LA VELA",null,8297,"SARAH DANIELA VELASCO MARULANDA",null,null,"CMS","Consultoria y Monitoreo Ambiental"]
[null,null,null,null,null,null,null,null,null,null,null,null,null,null,null,null,null,null,56890,"4484705OCEA",100,null,"PMO - CARRIZAL",null,5745,"Sara Eilyn Guzman Henao",null,null,"CVC","Corporacion  Autonoma Regional del Valle del Cauca"]
[null,null,null,null,null,null,null,null,null,null,null,null,null,null,null,null,null,null,56906,"4718921OCEA",100,null,"PMO - CIENAGA",null,8266,"Zulay Saudith González Herrera",null,null,"CORPONARIÑO","Corporacion Autonoma Regional de Nariño"]
[null,null,null,null,null,null,null,null,null,null,null,null,null,null,null,null,null,null,56916,"2357431OCEA",100,null,"PMO - CRISTO REY",null,null,null,null,null,"CARSUCRE","Corporacion Autonoma Regional de Sucre"]
[null,null,null,null,null,null,null,null,null,null,null,null,null,null,null,null,null,null,56919,"0565934OCEA",100,null,"PMO - DAMAQUIEL",null,null,null,null,null,"CRA","Corporacion Autonoma Regional del Atlàntico"]
[null,null,null,null,null,null,null,null,null,null,null,null,null,null,null,null,null,null,56901,"4409014OCEA",100,null,"PMO - DIBULLA",null,null,null,null,null,"CARDIQUE","Corporacion Autonoma Regional del Canal del Dique"]
[null,null,null,null,null,null,null,null,null,null,null,null,null,null,null,null,null,null,56924,"0549036OCEA",100,null,"PMO - ENSENADA RIONEGRO",null,null,null,null,null,"CRC","Corporacion Autonoma Regional del Cauca"]
[null,null,null,null,null,null,null,null,null,null,null,null,null,null,null,null,null,null,56905,"4700119OCEA",100,null,"PMO - INCA INCA",null,null,null,null,null,"CODECHOCO","Corporacion para el Desarrollo Sostenible del Choco"]
[null,null,null,null,null,null,null,null,null,null,null,null,null,null,null,null,null,null,56900,"4400113OCEA",100,null,"PMO - LA ENEA",null,null,null,null,null,"CORPOGUAJIRA","Corporación Autónoma Regional de la Guajira"]
[null,null,null,null,null,null,null,null,null,null,null,null,null,null,null,null,null,null,56912,"2367527OCEA",100,null,"PMO - LAGUNA BOCA COREA",null,null,null,null,null,"CORALINA","Corporación Autónoma Regional de las Islas de San Andrés, Providencia y Santa Catalina"]
[null,null,null,null,null,null,null,null,null,null,null,null,null,null,null,null,null,null,56892,"4456007OCEA",100,null,"PMO - MANAURE",null,null,null,null,null,"CORPAMAG","Corporación Autónoma Regional del Magdalena"]
[null,null,null,null,null,null,null,null,null,null,null,null,null,null,null,null,null,null,56923,"0583745OCEA",100,null,"PMO - MATUNTUGO",null,null,null,null,null,"CORPOURABA","Corporación Autónoma Regional del Uraba"]
[null,null,null,null,null,null,null,null,null,null,null,null,null,null,null,null,null,null,56897,"4456010OCEA",100,null,"PMO - MAYAPO 1",null,null,null,null,null,"CVC-UNPA","Corporación Autónoma Regional del Valle del Cauca-Universidad del Pacifico"]
[null,null,null,null,null,null,null,null,null,null,null,null,null,null,null,null,null,null,56896,"4456010OCEA",200,null,"PMO - MAYAPO 2",null,null,null,null,null,"CORALINA OMACHA","Corporación Coralina - Fundación Omacha"]
[null,null,null,null,null,null,null,null,null,null,null,null,null,null,null,null,null,null,56894,"4456008OCEA",100,null,"PMO - MUSICHI 1",null,null,null,null,null,"CORPOURABA - OMACHA","Corporación Corpouraba - Fundación Omacha"]
[null,null,null,null,null,null,null,null,null,null,null,null,null,null,null,null,null,null,56893,"4456008OCEA",200,null,"PMO - MUSICHI 2",null,null,null,null,null,"CVS","Corporación Regional de Valle del Sinu y San Jorge"]
[null,null,null,null,null,null,null,null,null,null,null,null,null,null,null,null,null,null,56913,"2350028OCEA",100,null,"PMO - PASO NUEVO",null,null,null,null,null,"DADSA","DEPARTAMENT0 ADMiNISTRATIVO DISTRITAL DE SOSTENIBILIDAD AMBIENTAL"]
[null,null,null,null,null,null,null,null,null,null,null,null,null,null,null,null,null,null,56909,"2367246OCEA",100,null,"PMO - PLAYA BLANCA",null,null,null,null,null,"DAMARENA","Departamento Administrativo del Medio Ambiente de Cartagena -  EPA Cartagena"]
[null,null,null,null,null,null,null,null,null,null,null,null,null,null,null,null,null,null,56920,"0583739OCEA",100,null,"PMO - PLAYA LA MARTINA",null,null,null,null,null,"DAMAB","Departamento Técnico Administrativo del Medio Ambiente Barranquilla"]
[null,null,null,null,null,null,null,null,null,null,null,null,null,null,null,null,null,null,56911,"2367525OCEA",100,null,"PMO - PLAYA MIREYA",null,null,null,null,null,"DIMAR","Dirección General Maritima"]
[null,null,null,null,null,null,null,null,null,null,null,null,null,null,null,null,null,null,56907,"4757022OCEA",100,null,"PMO - PUEBLO VIEJO",null,null,null,null,null,"ECOREEF","ECOREEF Colombia LTDA"]
[null,null,null,null,null,null,null,null,null,null,null,null,null,null,null,null,null,null,56917,"2357432OCEA",100,null,"PMO - PUERTO ESCONDIDO",null,null,null,null,null,"ETH Zurich","EIDGENÖSSISCHE TECHNISCHE HOCHSCHULE ZÜRICH (Politécnico)\r\r\nEIDGENÖSSISCHE TECHNISCHE HOCHSCHULE ZÜRICH"]
[null,null,null,null,null,null,null,null,null,null,null,null,null,null,null,null,null,null,56910,"2367224OCEA",100,null,"PMO - PUNTA MESTIZO",null,null,null,null,null,"ECOMAR","Ecomar Consultoría  Ambiental S.A.S."]
[null,null,null,null,null,null,null,null,null,null,null,null,null,null,null,null,null,null,56918,"0505133OCEA",100,null,"PMO - RIO HOBO",null,null,null,null,null,"EPA BARRANQUILLA","Establecimiento Publico Ambiental Barranquilla"]
[null,null,null,null,null,null,null,null,null,null,null,null,null,null,null,null,null,null,56922,"0583743OCEA",100,null,"PMO - RIO LEON",null,null,null,null,null,"EPA BUENAVENTURA","Establecimiento Publico Ambiental Buenaventura"]
[null,null,null,null,null,null,null,null,null,null,null,null,null,null,null,null,null,null,56899,"4400112OCEA",100,null,"PMO - RIOHACHA",null,null,null,null,null,"EPA CARTAGENA","Establecimiento Publico Ambiental Cartagena"]
[null,null,null,null,null,null,null,null,null,null,null,null,null,null,null,null,null,null,56915,"2350030OCEA",100,null,"PMO - RÍO CEDRO",null,null,null,null,null,"ZOOCALI","FUNDACIÓN ZOOLÓGICA DE CALI"]
[null,null,null,null,null,null,null,null,null,null,null,null,null,null,null,null,null,null,56904,"4700118OCEA",100,null,"PMO - SANTA MARTA",null,null,null,null,null,"Fundabas","Fundacion Para El Desarrollo De La Biologia Aplicada"]
[null,null,null,null,null,null,null,null,null,null,null,null,null,null,null,null,null,null,56891,"4456006OCEA",100,null,"PMO - SANTA ROSA",null,null,null,null,null,"F. Bucea Colombia","Fundación Bucea Colombia"]
[null,null,null,null,null,null,null,null,null,null,null,null,null,null,null,null,null,null,56903,"4700117OCEA",100,null,"PMO - TAGANGA",null,null,null,null,null,"F.CORALES","Fundación Corales de Paz"]
[null,null,null,null,null,null,null,null,null,null,null,null,null,null,null,null,null,null,56908,"4757023OCEA",100,null,"PMO - TASAJERA",null,null,null,null,null,"F. Malpelo","Fundación Malpelo / Marviva"]
[null,null,null,null,null,null,null,null,null,null,null,null,null,null,null,null,null,null,55973,"Paso_Nuevo",96321,null,"Paso Nuevo1",null,null,null,null,null,"OMACHA","Fundación Omacha"]
[null,null,null,null,null,null,null,null,null,null,null,null,null,null,null,null,null,null,56689,"playa_Mireya",96321,null,"Playa Mireya",null,null,null,null,null,"OMACHA - OFM","Fundación Omacha - Observadores Fauna Marina"]
[null,null,null,null,null,null,null,null,null,null,null,null,null,null,null,null,null,null,55969,"Puerto_Escondido",96321,null,"Puerto Escondido1",null,null,null,null,null,"OMACHA - OFM - AQUAB","Fundación Omacha - Observadores Fauna Marina - Aquabiosfera"]
[null,null,null,null,null,null,null,null,null,null,null,null,null,null,null,null,null,null,55975,"Punta_Mestizos",96321,null,"Punta Mestizo1",null,null,null,null,null,"Sila Kangama","Fundación Sila Kangama"]
[null,null,null,null,null,null,null,null,null,null,null,null,null,null,null,null,null,null,55960,"Rincon_Mosquito",96321,null,"Rincon Mosquito - Bello Horizonte",null,null,null,null,null,"CIAA-UJTL","Fundación Universidad Jorge Tadeo Lozano - Centro de Investigaciones y Asesorías Agroindustriales,"]
[null,null,null,null,null,null,null,null,null,null,null,null,null,null,null,null,null,null,55971,"Rio_Cedro",96321,null,"Rio Cedro1",null,null,null,null,null,"UJTL","Fundación Universidad de Bogotá Jorge Tadeo Lozano"]
[null,null,null,null,null,null,null,null,null,null,null,null,null,null,null,null,null,null,55978,"Rio_Currulao",96321,null,"Rio Currulao1",null,null,null,null,null,"CERG","Geochemical & Environmental Research Group"]
[null,null,null,null,null,null,null,null,null,null,null,null,null,null,null,null,null,null,55983,"Rio_Hobo",96321,null,"Rio Jobo1",null,null,null,null,null,"IED_San José","INSTITUCIÓN EDUCATIVA DEPARTAMENTAL SAN JOSÉ"]
[null,null,null,null,null,null,null,null,null,null,null,null,null,null,null,null,null,null,null,null,null,null,null,null,null,null,null,null,"IRD","Institut de Recherche pour le Developpement"]
[null,null,null,null,null,null,null,null,null,null,null,null,null,null,null,null,null,null,null,null,null,null,null,null,null,null,null,null,"COLCIENCIAS","Instituto Colombiano para el Desarrollo de la Ciencia y la Tecnología"]
[null,null,null,null,null,null,null,null,null,null,null,null,null,null,null,null,null,null,null,null,null,null,null,null,null,null,null,null,"ICAL","Instituto Colombo Alemán de Investigaciones Científicas de Punta de Betín"]
[null,null,null,null,null,null,null,null,null,null,null,null,null,null,null,null,null,null,null,null,null,null,null,null,null,null,null,null,"INVEMAR - OMACHA","Instituto INVEMAR - Fundación Omacha"]
[null,null,null,null,null,null,null,null,null,null,null,null,null,null,null,null,null,null,null,null,null,null,null,null,null,null,null,null,"INDERENA","Instituto Nacional de los Recursos Naturales Renovables y del Ambiente"]
[null,null,null,null,null,null,null,null,null,null,null,null,null,null,null,null,null,null,null,null,null,null,null,null,null,null,null,null,"ICML","Instituto de Ciencias del Mar y Limnología (ICML)"]
[null,null,null,null,null,null,null,null,null,null,null,null,null,null,null,null,null,null,null,null,null,null,null,null,null,null,null,null,"IIAP","Instituto de Investigaciones Ambientales del Pacifico"]
[null,null,null,null,null,null,null,null,null,null,null,null,null,null,null,null,null,null,null,null,null,null,null,null,null,null,null,null,"INVEMAR","Instituto de Investigaciones Marinas y Costeras"]
[null,null,null,null,null,null,null,null,null,null,null,null,null,null,null,null,null,null,null,null,null,null,null,null,null,null,null,null,"INVEMAR-AGR","Instituto de Investigaciones Marinas y Costeras - AGR"]
[null,null,null,null,null,null,null,null,null,null,null,null,null,null,null,null,null,null,null,null,null,null,null,null,null,null,null,null,"INVEMAR-BVT","Instituto de Investigaciones Marinas y Costeras - BVT"]
[null,null,null,null,null,null,null,null,null,null,null,null,null,null,null,null,null,null,null,null,null,null,null,null,null,null,null,null,"INVEMAR-CPT","Instituto de Investigaciones Marinas y Costeras - CPT"]
[null,null,null,null,null,null,null,null,null,null,null,null,null,null,null,null,null,null,null,null,null,null,null,null,null,null,null,null,"IAvH","Instituto de Investigación Recursos Biológicos Alexander von Humboldt"]
[null,null,null,null,null,null,null,null,null,null,null,null,null,null,null,null,null,null,null,null,null,null,null,null,null,null,null,null,"IDO_Cuba","Instituto de Oceanologia Cuba"]
[null,null,null,null,null,null,null,null,null,null,null,null,null,null,null,null,null,null,null,null,null,null,null,null,null,null,null,null,"IATTC","Inter-American Tropical Tuna Commission"]
[null,null,null,null,null,null,null,null,null,null,null,null,null,null,null,null,null,null,null,null,null,null,null,null,null,null,null,null,"LABORMAR","Laboratorio Microbiológico Ortiz Martinez "]
[null,null,null,null,null,null,null,null,null,null,null,null,null,null,null,null,null,null,null,null,null,null,null,null,null,null,null,null,"Literature report","Literature report"]
[null,null,null,null,null,null,null,null,null,null,null,null,null,null,null,null,null,null,null,null,null,null,null,null,null,null,null,null,"MCS Consultoría","MCS Consultoría y Monitoreo ambiental S.A.S"]
[null,null,null,null,null,null,null,null,null,null,null,null,null,null,null,null,null,null,null,null,null,null,null,null,null,null,null,null,"MAKARELA","Makarela S.A.S"]
[null,null,null,null,null,null,null,null,null,null,null,null,null,null,null,null,null,null,null,null,null,null,null,null,null,null,null,null,"MHNMC","Makuriwa - Museo de Historia Natural Marina de Colombia"]
[null,null,null,null,null,null,null,null,null,null,null,null,null,null,null,null,null,null,null,null,null,null,null,null,null,null,null,null,"MMU","Manchester Metropolitan University"]
[null,null,null,null,null,null,null,null,null,null,null,null,null,null,null,null,null,null,null,null,null,null,null,null,null,null,null,null,"M_P","Marine & Port Consultants"]
[null,null,null,null,null,null,null,null,null,null,null,null,null,null,null,null,null,null,null,null,null,null,null,null,null,null,null,null,"IAEA-MEL","Marine Environment Laboratories"]
[null,null,null,null,null,null,null,null,null,null,null,null,null,null,null,null,null,null,null,null,null,null,null,null,null,null,null,null,"MINCIENCIAS","Ministerio de Ciencia, Tecnología e Innovación"]
[null,null,null,null,null,null,null,null,null,null,null,null,null,null,null,null,null,null,null,null,null,null,null,null,null,null,null,null,"MA","Ministerio del Ambiente Haiti"]
[null,null,null,null,null,null,null,null,null,null,null,null,null,null,null,null,null,null,null,null,null,null,null,null,null,null,null,null,"MADS","Ministerio del Ambiente y Desarrollo Sostenible"]
[null,null,null,null,null,null,null,null,null,null,null,null,null,null,null,null,null,null,null,null,null,null,null,null,null,null,null,null,"MINAMBIENTE","Ministerio del Ambiente y Desarrollo Sostenible"]
[null,null,null,null,null,null,null,null,null,null,null,null,null,null,null,null,null,null,null,null,null,null,null,null,null,null,null,null,"MHN-UC","Museo Historia Natural Universidad del Cauca"]
[null,null,null,null,null,null,null,null,null,null,null,null,null,null,null,null,null,null,null,null,null,null,null,null,null,null,null,null,"MZUSP","Museu de Zoologia da Universidade de São Paulo"]
[null,null,null,null,null,null,null,null,null,null,null,null,null,null,null,null,null,null,null,null,null,null,null,null,null,null,null,null,"NOAA FISHERIES","NOAA Southwest Fisheries Science Center"]
[null,null,null,null,null,null,null,null,null,null,null,null,null,null,null,null,null,null,null,null,null,null,null,null,null,null,null,null,"NEPA","National Environment and Planning Agency"]
[null,null,null,null,null,null,null,null,null,null,null,null,null,null,null,null,null,null,null,null,null,null,null,null,null,null,null,null,"NOAA","National Oceanic and Atmospheric Administration"]
[null,null,null,null,null,null,null,null,null,null,null,null,null,null,null,null,null,null,null,null,null,null,null,null,null,null,null,null,"OBIMAR","OBIMAR. Empresa Portuaria Quetzal"]
[null,null,null,null,null,null,null,null,null,null,null,null,null,null,null,null,null,null,null,null,null,null,null,null,null,null,null,null,"OBIS-SEAMAP","OBIS-SEAMAP"]
[null,null,null,null,null,null,null,null,null,null,null,null,null,null,null,null,null,null,null,null,null,null,null,null,null,null,null,null,"OBIS","Ocean Biogeographic Information System"]
[null,null,null,null,null,null,null,null,null,null,null,null,null,null,null,null,null,null,null,null,null,null,null,null,null,null,null,null,"OIR","Oceanario de las Islas del Rosario - CEINER"]
[null,null,null,null,null,null,null,null,null,null,null,null,null,null,null,null,null,null,null,null,null,null,null,null,null,null,null,null,"OIEA","Orgánismo Internacional de Energía Atómica"]
[null,null,null,null,null,null,null,null,null,null,null,null,null,null,null,null,null,null,null,null,null,null,null,null,null,null,null,null,"PNN_GORGONA","Parque Nacional Natural Gorgona"]
[null,null,null,null,null,null,null,null,null,null,null,null,null,null,null,null,null,null,null,null,null,null,null,null,null,null,null,null,"UAESPNN","Parques Nacionales Naturales de Colombia"]
[null,null,null,null,null,null,null,null,null,null,null,null,null,null,null,null,null,null,null,null,null,null,null,null,null,null,null,null,"PNN","Parques Nacionales Naturales de Colombia "]
[null,null,null,null,null,null,null,null,null,null,null,null,null,null,null,null,null,null,null,null,null,null,null,null,null,null,null,null,"PARTICULAR","Particular"]
[null,null,null,null,null,null,null,null,null,null,null,null,null,null,null,null,null,null,null,null,null,null,null,null,null,null,null,null,"PUJ","Pontificia Universidad Javeriana"]
[null,null,null,null,null,null,null,null,null,null,null,null,null,null,null,null,null,null,null,null,null,null,null,null,null,null,null,null,"RAC-CIMAB","RAC-CIMAB"]
[null,null,null,null,null,null,null,null,null,null,null,null,null,null,null,null,null,null,null,null,null,null,null,null,null,null,null,null,"REPSOL","Repsol Exploración Colombia S.A."]
[null,null,null,null,null,null,null,null,null,null,null,null,null,null,null,null,null,null,null,null,null,null,null,null,null,null,null,null,"SERNA","Secretaría de Recursos Naturales y Ambiente (SERNA)/Centro de Estudios y Control de Contaminantes (CESCCO)"]
[null,null,null,null,null,null,null,null,null,null,null,null,null,null,null,null,null,null,null,null,null,null,null,null,null,null,null,null,"SERAMBIENTE","Servicios de Ingeniería Ambiental"]
[null,null,null,null,null,null,null,null,null,null,null,null,null,null,null,null,null,null,null,null,null,null,null,null,null,null,null,null,"SEPC","Shell Exploration & Production Colombia GMBH"]
[null,null,null,null,null,null,null,null,null,null,null,null,null,null,null,null,null,null,null,null,null,null,null,null,null,null,null,null,"NMHN Smithsonian","Smithsonian Institution"]
[null,null,null,null,null,null,null,null,null,null,null,null,null,null,null,null,null,null,null,null,null,null,null,null,null,null,null,null,"SPRC - CNR","Sociedad Portuaria Rio Cordoba - Colombian Natural Resources S.A.S."]
[null,null,null,null,null,null,null,null,null,null,null,null,null,null,null,null,null,null,null,null,null,null,null,null,null,null,null,null,"SPSM","Sociedad Portuaria de Santa Marta"]
[null,null,null,null,null,null,null,null,null,null,null,null,null,null,null,null,null,null,null,null,null,null,null,null,null,null,null,null,"UPR Humacao","UNIVERSIDAD DE PUERTO RICO EN HUMACAO"]
[null,null,null,null,null,null,null,null,null,null,null,null,null,null,null,null,null,null,null,null,null,null,null,null,null,null,null,null,"UR Camelia, IRD","UR Camelia, IRD"]
[null,null,null,null,null,null,null,null,null,null,null,null,null,null,null,null,null,null,null,null,null,null,null,null,null,null,null,null,"UNEP CAR/RCU","United Nations Environment Programme - Caribbean Regional Coordinating Unit"]
[null,null,null,null,null,null,null,null,null,null,null,null,null,null,null,null,null,null,null,null,null,null,null,null,null,null,null,null,"UASD","Universidad Autónoma de Santo Domingo"]
[null,null,null,null,null,null,null,null,null,null,null,null,null,null,null,null,null,null,null,null,null,null,null,null,null,null,null,null,"UFB","Universidad Federal de Bahía"]
[null,null,null,null,null,null,null,null,null,null,null,null,null,null,null,null,null,null,null,null,null,null,null,null,null,null,null,null,"UJTL-MM","Universidad Jorje Tadeo Lozano-Museo del Mar"]
[null,null,null,null,null,null,null,null,null,null,null,null,null,null,null,null,null,null,null,null,null,null,null,null,null,null,null,null,"UNMSM","Universidad Nacional Mayor de San Marcos"]
[null,null,null,null,null,null,null,null,null,null,null,null,null,null,null,null,null,null,null,null,null,null,null,null,null,null,null,null,"UNal","Universidad Nacional de Colombia"]
[null,null,null,null,null,null,null,null,null,null,null,null,null,null,null,null,null,null,null,null,null,null,null,null,null,null,null,null,"USB","Universidad Simón Bolivar"]
[null,null,null,null,null,null,null,null,null,null,null,null,null,null,null,null,null,null,null,null,null,null,null,null,null,null,null,null,"UDEA","Universidad de Antioquia"]
[null,null,null,null,null,null,null,null,null,null,null,null,null,null,null,null,null,null,null,null,null,null,null,null,null,null,null,null,"UJTL-FCM","Universidad de Bogotá Jorge Tadeo Lozano, Fac. de Ciencias Naturales e Ingenieria"]
[null,null,null,null,null,null,null,null,null,null,null,null,null,null,null,null,null,null,null,null,null,null,null,null,null,null,null,null,"UCartagena","Universidad de Cartagena"]
[null,null,null,null,null,null,null,null,null,null,null,null,null,null,null,null,null,null,null,null,null,null,null,null,null,null,null,null,"UCO","Universidad de Córdoba"]
[null,null,null,null,null,null,null,null,null,null,null,null,null,null,null,null,null,null,null,null,null,null,null,null,null,null,null,null,"UF","Universidad de Florida"]
[null,null,null,null,null,null,null,null,null,null,null,null,null,null,null,null,null,null,null,null,null,null,null,null,null,null,null,null,"UniGie","Universidad de Giessen"]
[null,null,null,null,null,null,null,null,null,null,null,null,null,null,null,null,null,null,null,null,null,null,null,null,null,null,null,null,"UNIBAGUE","Universidad de Ibague"]
[null,null,null,null,null,null,null,null,null,null,null,null,null,null,null,null,null,null,null,null,null,null,null,null,null,null,null,null,"UDES","Universidad de La Sabana"]
[null,null,null,null,null,null,null,null,null,null,null,null,null,null,null,null,null,null,null,null,null,null,null,null,null,null,null,null,"UDO - NS","Universidad de Oriente - Núcleo de Sucre"]
[null,null,null,null,null,null,null,null,null,null,null,null,null,null,null,null,null,null,null,null,null,null,null,null,null,null,null,null,"UNIGUAJIRA","Universidad de la Guajira"]
[null,null,null,null,null,null,null,null,null,null,null,null,null,null,null,null,null,null,null,null,null,null,null,null,null,null,null,null,"UniMagdalena","Universidad del Magdalena"]
[null,null,null,null,null,null,null,null,null,null,null,null,null,null,null,null,null,null,null,null,null,null,null,null,null,null,null,null,"UNINORTE","Universidad del Norte"]
[null,null,null,null,null,null,null,null,null,null,null,null,null,null,null,null,null,null,null,null,null,null,null,null,null,null,null,null,"UPacifico","Universidad del Pacífico"]
[null,null,null,null,null,null,null,null,null,null,null,null,null,null,null,null,null,null,null,null,null,null,null,null,null,null,null,null,"UT","Universidad del Tolima"]
[null,null,null,null,null,null,null,null,null,null,null,null,null,null,null,null,null,null,null,null,null,null,null,null,null,null,null,null,"UNIVALLE","Universidad del Valle"]
[null,null,null,null,null,null,null,null,null,null,null,null,null,null,null,null,null,null,null,null,null,null,null,null,null,null,null,null,"UC","Universidae do Cerá, Estaçao de Biologia Marinha"]
[null,null,null,null,null,null,null,null,null,null,null,null,null,null,null,null,null,null,null,null,null,null,null,null,null,null,null,null,"UNH","University of New Hampshire"]
[null,null,null,null,null,null,null,null,null,null,null,null,null,null,null,null,null,null,null,null,null,null,null,null,null,null,null,null,"UM Francia","Université de Montpellier"]
[null,null,null,null,null,null,null,null,null,null,null,null,null,null,null,null,null,null,null,null,null,null,null,null,null,null,null,null,"VIMS-SI","Virginia Institute of Marine Science / Smithsonian Institution"]
[null,null,null,null,null,null,null,null,null,null,null,null,null,null,null,null,null,null,null,null,null,null,null,null,null,null,null,null,"WCS","Wildlife Conservation Society"]

{"sheet":"Otras referencias","index":5,"n_rows":33,"n_cols":16,"rows_kept":33,"cut":false,"hidden":false,"merged":[[20,3,20,5],[4,13,4,15],[4,3,4,5],[4,7,4,8],[0,0,2,6],[4,0,4,1],[4,10,4,11]]}
["Estas son listas para variables con valores que no se encuentran codificados, pero que deben manejarse de manera estandarizada. \nSi se requiere agregar un valor nuevo hagalo debajo de la lista correspondiente"]
[]
[]
[]
["UNIDADES DE MEDIDA",null,null,"PROYECTO",null,null,null,"ROLES",null,null,"METODOLOGIAS",null,null,"TEMATICAS"]
["CODIGO","DESCRIPCION",null,"COD","PROYECTO","PROYECTO DESC",null,4,"Captura en campo",null,"CODIGO","DESCRIPCION",null,"COD METODOLOGIA","COD TEMATICA","DESCRIPCION"]
[10,"cm",null,3572,"KFW","KFW",null,6,"Revisar datos",null,871,"Playas - MEGAFAUNA",null,870,268,"PLAYAS MACROFAUNA"]
[11,"m",null,null,null,null,null,3497,"Coordinador actividad de campo",null,870,"Playas - MACROFAUNA",null,871,269,"PLAYAS MEGAFAUNA"]
[69,"g",null,null,null,null,null,4526,"Procesamiento en laboratorio",null,869,"Oceanografía",null,869,267,"OLEAJE"]
[142,"Ind/Estación"]
[]
[]
[]
[]
[]
[]
[]
[]
[]
[]
[null,null,null,"CODIGOS LOV"]
[null,null,null,"DESCRIPCIÓN","CÓDIGO","GRUPO"]
[null,null,null,"Departamento",10,2]
[null,null,null,"Sector",20,2]
[null,null,null,"Punto",30,2]
[null,null,null,"Parcela",35,2]
[null,null,null,"Estaciones",40,2]
[null,null,null,"Region",50,2]
[null,null,null,"Unidad_de_Manejo",60,2]
[null,null,null,"Unidad_Ambiental_Costera",70,2]
[null,null,null,"Localidad",80,2]
[null,null,null,"Bloque_Exploracion",85,2]
[null,null,null,"Area",90,2]

{"sheet":"AGD_MUESTREOS","index":6,"n_rows":0,"n_cols":0,"rows_kept":0,"cut":false,"hidden":true,"merged":[]}

{"sheet":"AGD_PARAMETRO","index":7,"n_rows":0,"n_cols":0,"rows_kept":0,"cut":false,"hidden":true,"merged":[]}

{"sheet":"AGD_MUESTRAS","index":8,"n_rows":0,"n_cols":0,"rows_kept":0,"cut":false,"hidden":true,"merged":[]}

{"sheet":"AGD_MUESTRAS_VARIABLES","index":9,"n_rows":0,"n_cols":0,"rows_kept":0,"cut":false,"hidden":true,"merged":[]}

{"sheet":"AGD_AUTORIAS","index":10,"n_rows":0,"n_cols":0,"rows_kept":0,"cut":false,"hidden":true,"merged":[]}